Workbook

Sheet 1. Utility_Info_
AB1: Algoma Power Inc.
AB2: Atikokan Hydro Inc.
AB3: Attawapiskat Power Corporation
AB4: Bluewater Power Distribution Corp.
AB5: Brant County Power
AB6: Brantford Power Inc.
AB7: Burlington Hydro Inc.
AB8: Cambridge and North Dumfries Hydro
AB9: Canadian Niagara Power Inc. – Eastern Ontario Power/Fort Erie/Port Colborne
AB10: Centre Wellington Hydro Ltd.
AB11: Chapleau Public Utilities Corporation
AB12: COLLUS Power Corp.
H13: Version | I13: 4 | AB13: Cooperative Hydro Embrun Inc.
AB14: E.L.K. Energy Inc.
C15: Utility Name | D15: Kingston Hydro Corporation | AB15: Enersource Hydro Mississauga Inc.
AB16: Entegrus Powerlines Inc.
C17: Assigned EB Number | D17: EB-2015-0083 | AB17: ENWIN Utilities Ltd.
AB18: Erie Thames Powerlines Corp.
C19: Name and Title | D19: Randy Murphy, Chief Financial Officer | AB19: Espanola Regional Hydro Distribution Corporation
AB20: Essex Powerlines Corporation
C21: Phone Number | D21: 613-546-1181 | AB21: Festival Hydro Inc.
AB22: Fort Albany Power Corporation
C23: Email Address | D23: rmurphy@kingstonhydro.com | AB23: Fort Frances Power Corporation
AB24: Greater Sudbury Hydro Inc.
C25: Date | D25: 2015-04-24 | AB25: Grimsby Power Inc.
AB26: Guelph Hydro Electric Systems Inc.
C27: Last COS Re-based Year | D27: 2011 | AB27: Haldimand County Hydro Inc.
AB28: Halton Hills Hydro Inc.
AB29: Hearst Power Distribution Co. Ltd.
A30: Note: Drop-down lists are shaded blue; Input cells are shaded green.
AB32: Horizon Utilities Corporation
AB33: Hydro 2000 Inc.
AB34: Hydro Hawkesbury Inc.
AB35: Hydro One Brampton Networks Inc.
AB36: Hydro One Networks Inc.
AB37: Hydro One Remote Communities Inc.
AB38: Hydro Ottawa Limited
AB39: Innisfil Hydro Dist. Systems Limited
AB40: Kashechewan Power Corporation
AB41: Kenora Hydro Electric Corporation Ltd.
AB42: Kingston Hydro Corporation
AB43: Kitchener-Wilmot Hydro Inc.
AB44: Lakefront Utilities Inc.
AB45: Lakeland Power Distribution Ltd.
AB46: London Hydro Inc.
AB47: Midland Power Utility Corporation
AB48: Milton Hydro Distribution Inc.
AB49: Newmarket – Tay Power Distribution Ltd.
AB50: Niagara Peninsula Energy Inc.
AB51: Niagara-on-the-Lake Hydro Inc.
AB52: Norfolk Power Distribution Ltd.
AB53: North Bay Hydro Distribution Limited
AB54: Northern Ontario Wires Inc.
AB55: Oakville Hydro Distribution Inc.
AB56: Orangeville Hydro Limited
AB57: Orillia Power Distribution Corp.
AB58: Oshawa PUC Networks Inc.
AB59: Ottawa River Power Corporation
AB60: Parry Sound Power Corporation
AB61: Peterborough Distribution Inc.
AB62: PowerStream Inc.
AB63: PUC Distribution Inc.
AB64: Renfrew Hydro Inc.
AB65: Rideau St. Lawrence Distribution Inc.
AB66: St. Thomas Energy Inc.
AB67: Sioux Lookout Hydro Inc.
AB68: Thunder Bay Hydro Electricity Distribution
AB69: Tillsonburg Hydro Inc.
AB70: Toronto Hydro-Electric System Limited
AB71: Veridian Connections Inc.
AB72: Wasaga Distribution Inc.
AB73: Waterloo North Hydro Inc.
AB74: Welland Hydro Electric System Corp.
AB75: Wellington North Power Inc.
AB76: West Coast Huron Energy Inc.
AB77: Westario Power Inc.
AB78: Whitby Hydro Electric Corporation
AB79: Woodstock Hydro Services Inc.

Sheet 2. ICM_Costs
G18: 2012 | H18: 2013 | I18: 2014 | K18: 2015 | M18: Total
B19: Sheet 2: ICM Capital Cost Data | G19: Audited Actual | H19: Audited Actual | I19: Audited Actual | K19: Forecast
B39: 1 | C39: Capital Costs
E40: Asset Type
C41: ICP 1 King Street 44 kv Underground Rebuild | E41: Asset type must be selected to enable calculations | G41: =IF(ISBLANK(G19),"",G19) -> Audited Actual | H41: Audited Actual | I41: =IF(ISBLANK(I19),"",I19) -> Audited Actual | K41: =IF(ISBLANK(K19),"",K19) -> Forecast
C42: ICP 1.1 | E42: Poles | M42: =SUM(I42,K42) -> 0
C44: ICP 1.2 | E44: Overhead Conductor | M44: =SUM(I44,K44) -> 0
C46: ICP 1.3 | E46: Underground Conduit | G46: 731286 | M46: =SUM(I46,K46) -> 0
C48: ICP 1.4 | E48: Underground Conductor | G48: 573808.33 | M48: =SUM(I48,K48) -> 0
C50: ICP 1.5 | E50: Underground Injected Cable | M50: =SUM(I50,K50) -> 0
C52: ICP 1.6 | E52: Underground Transformers | M52: 0
C54: ICP 1.7 | E54: Overhead Transformers | M54: 0
C56: ICP 1.8 | E56: Overhead Services | M56: 0
C58: ICP 1.9 | M58: 0
C60: ICP 1.10 | M60: 0
C62: Total King Street 44 kv Underground Rebuild | G62: =SUM(G42,G44,G46,G48,G50,G52,G54,G56,G58,G60) -> 1305094.33 | H62: 0 | I62: =SUM(I42,I44,I46,I48,I50,I52,I54,I56,I58,I60) -> 0 | K62: =SUM(K42,K44,K46,K48,K50,K52,K54,K56,K58,K60) -> 0 | M62: =SUM(M42,M44,M46,M48,M50,M52,M54,M56,M58,M60) -> 0
E64: =E40 -> Asset Type
C65: ICP 2 Transformer Vault (TV 6) | G65: =G41 -> Audited Actual | H65: Audited Actual | I65: =I41 -> Audited Actual | K65: =K41 -> Forecast
C66: ICP 2.1. | E66: Poles | G66: 110.57 | M66: =SUM(I66,K66) -> 0
C68: ICP 2.2 | E68: Overhead Conductor | G68: 663.92 | M68: =SUM(I68,K68) -> 0
C70: ICP 2.3 | E70: Underground Conductor | G70: 208041.36 | M70: =SUM(I70,K70) -> 0
C72: ICP 2.4 | E72: Overhead Transformers | M72: =SUM(I72,K72) -> 0
C74: ICP 2.5 | E74: Underground Transformers | G74: 36822.06 | M74: =SUM(I74,K74) -> 0
C76: ICP 2.6 | E76: Overhead Services | M76: =SUM(I76,K76) -> 0
C78: ICP 2.7 | E78: Underground Conduit | G78: 220147.81 | M78: =SUM(I78,K78) -> 0
C80: ICP 2.8 | E80: System Supervisory Equipment | M80: =SUM(I80,K80) -> 0
C82: ICP 2.9 | E82: Distribution Station Equipment - Normally Primary below 50 kV | M82: =SUM(I82,K82) -> 0
C84: ICP 2.10 | E84: Underground Injected Cable | M84: 0
C86: Total Transformer Vault (TV 6) | G86: =SUM(G66,G68,G70,G72,G74,G76,G78,G80,G82,G84) -> 465785.72 | H86: 0 | I86: =SUM(I66,I68,I70,I72,I74,I76,I78,I80,I82,I84) -> 0 | K86: =SUM(K66,K68,K70,K72,K74,K76,K78,K80,K82,K84) -> 0 | M86: =SUM(M66,M68,M70,M72,M74,M76,M78,M80,M82,M84) -> 0
E88: =E64 -> Asset Type
C89: ICP 3 Substation No. 15 Circuit Breakers Retrofit | G89: =G65 -> Audited Actual | H89: Audited Actual | I89: =I65 -> Audited Actual | K89: =K65 -> Forecast
C90: ICP 3.1 | E90: Poles | M90: =SUM(I90,K90) -> 0
C92: ICP 3.2 | E92: Overhead Conductor | M92: =SUM(I92,K92) -> 0
C94: ICP 3.3 | E94: RTU's | M94: =SUM(I94,K94) -> 0
C96: ICP 3.4 | E96: Underground Conductor | M96: =SUM(I96,K96) -> 0
C98: ICP 3.5 | E98: Underground Transformers | M98: =SUM(I98,K98) -> 0
C100: ICP 3.6 | E100: Overhead Services | M100: =SUM(I100,K100) -> 0
C102: ICP 3.7 | E102: System Supervisory Equipment | G102: 2567.09 | M102: =SUM(I102,K102) -> 0
C104: ICP 3.8 | E104: Distribution Station Equipment - Normally Primary below 50 kV | G104: 473855.82 | M104: =SUM(I104,K104) -> 0
C106: ICP 3.9 | E106: Transformer Station Equipment - Normally Primary above 50 kV | M106: =SUM(I106,K106) -> 0
C108: ICP 3.10 | M108: 0
C110: Total Substation No. 15 Circuit Breakers Retrofit | G110: =SUM(G90,G92,G94,G96,G98,G100,G102,G104,G106,G108) -> 476422.91 | H110: 0 | I110: =SUM(I90,I92,I94,I96,I98,I100,I102,I104,I106,I108) -> 0 | K110: =SUM(K90,K92,K94,K96,K98,K100,K102,K104,K106,K108) -> 0 | M110: =SUM(M90,M92,M94,M96,M98,M100,M102,M104,M106,M108) -> 0
E112: =E88 -> Asset Type
C113: ICP 4 Transformer Vault 11 (TV 11) Rebuild | G113: Audited Actual | H113: Audited Actual | I113: Audited Actual | K113: =K89 -> Forecast
C115: ICP 4.1 | E115: Poles | M115: =SUM(I115,K115) -> 0
C117: ICP 4.2 | E117: Overhead Conductor | M117: =SUM(I117,K117) -> 0
C119: ICP 4.3 | E119: Underground Conduit | H119: 173184.765 | I119: 45830.46 | M119: =SUM(I119,K119) -> 45830.46
C121: ICP 4.4 | E121: Underground Conductor | H121: 296850.84 | M121: =SUM(I121,K121) -> 0
C123: ICP 4.5 | E123: Overhead Transformers | M123: =SUM(I123,K123) -> 0
C125: ICP 4.6 | E125: Underground Transformers | H125: 38245.095 | M125: =SUM(I125,K125) -> 0
C127: ICP 4.7 | E127: Overhead Services | M127: =SUM(I127,K127) -> 0
C129: ICP 4.8 | E129: RTU's | M129: =SUM(I129,K129) -> 0
C131: ICP 4.9 | E131: Distribution Station Equipment - Normally Primary below 50 kV | M131: =SUM(I131,K131) -> 0
C133: ICP 4.10 | E133: Land Rights | M133: 0
C135: Total Transformer Vault 11 (TV 11) Rebuild | G135: =SUM(G115,G117,G119,G121,G123,G125,G127,G129,G131,G133) -> 0 | H135: 508280.7 | I135: =SUM(I115,I117,I119,I121,I123,I125,I127,I129,I131,I133) -> 45830.46 | K135: =SUM(K115,K117,K119,K121,K123,K125,K127,K129,K131,K133) -> 0 | M135: =SUM(M115,M117,M119,M121,M123,M125,M127,M129,M131,M133) -> 45830.46
E137: =E112 -> Asset Type
C138: ICP 5 SYSTEM CAPACITY RELIEF | G138: Audited Actual | H138: Audited Actual | I138: Audited Actual | K138: =K113 -> Forecast
C140: ICP 5.1 | M140: =SUM(I140,K140) -> 0
C142: ICP 5.2 | M142: =SUM(I142,K142) -> 0
C144: ICP 5.3 | M144: =SUM(I144,K144) -> 0
C146: ICP 5.4 | M146: =SUM(I146,K146) -> 0
C148: ICP 5.5 | M148: =SUM(I148,K148) -> 0
C150: ICP 5.6 | M150: =SUM(I150,K150) -> 0
C152: ICP 5.7 | M152: =SUM(I152,K152) -> 0
C154: ICP 5.8 | M154: =SUM(I154,K154) -> 0
C156: ICP 5.9 | M156: =SUM(I156,K156) -> 0
C158: ICP 5.10 | M158: 0
C160: Total System Capacity Relief | K160: =SUM(K140,K142,K144,K146,K148,K150,K152,K154,K156,K158) -> 0 | M160: =SUM(M140,M142,M144,M146,M148,M150,M152,M154,M156,M158) -> 0
C162: Total Capital Costs Related to Incremental Capital Projects (ICP) | K162: =SUM(K62,K86,K110,K135,K160) -> 0 | M162: =SUM(M62,M86,M110,M135,M160) -> 45830.46
E164: =E137 -> Asset Type
C165: OTHER CAPITAL COST | G165: Audited Actual | H165: Audited Actual | I165: Audited Actual | K165: =K138 -> Forecast
C167: A | M167: =SUM(I167,K167) -> 0
C169: B | M169: =SUM(I169,K169) -> 0
C171: C | M171: =SUM(I171,K171) -> 0
C173: Total Other Capital Costs | G173: =SUM(G167,G169,G171) -> 0 | H173: 0 | I173: =SUM(I167,I169,I171) -> 0 | K173: =SUM(K167,K169,K171) -> 0 | M173: =SUM(M167,M169,M171) -> 0
C175: Total ICM Capital Costs | G175: =G162+G173 -> 0 | H175: 0 | I175: =I162+I173 -> 0 | K175: =K162+K173 -> 0 | M175: =M162+M173 -> 45830.46
B178: 2 | C178: Aggregated ICM Costs by Category
C180: 2.1 | D180: Capital | E180: Account
C182: 2.1.1 | D182: Poles | E182: 1830 | G182: =SUMIF($E$42:$E$171,$D182,G$42:G$171) -> 110.57 | H182: 0 | I182: =SUMIF($E$42:$E$171,$D182,I$42:I$171) -> 0 | K182: =SUMIF($E$42:$E$171,$D182,K$42:K$171) -> 0 | M182: =SUM(I182:L182) -> 0
C184: 2.1.2 | D184: Overhead Conductor | E184: 1835 | G184: =SUMIF($E$42:$E$171,$D184,G$42:G$171) -> 663.92 | H184: 0 | I184: =SUMIF($E$42:$E$171,$D184,I$42:I$171) -> 0 | K184: =SUMIF($E$42:$E$171,$D184,K$42:K$171) -> 0 | M184: =SUM(I184:L184) -> 0
C186: 2.1.3 | D186: Underground Conduit | E186: 1840 | G186: =SUMIF($E$42:$E$171,$D186,G$42:G$171) -> 951433.81 | H186: 173184.765 | I186: =SUMIF($E$42:$E$171,$D186,I$42:I$171) -> 45830.46 | K186: =SUMIF($E$42:$E$171,$D186,K$42:K$171) -> 0 | M186: =SUM(I186:L186) -> 45830.46
C188: 2.1.4 | D188: Underground Conductor | E188: 1845 | G188: =SUMIF($E$42:$E$171,$D188,G$42:G$171) -> 781849.69 | H188: 296850.84 | I188: =SUMIF($E$42:$E$171,$D188,I$42:I$171) -> 0 | K188: =SUMIF($E$42:$E$171,$D188,K$42:K$171) -> 0 | M188: =SUM(I188:L188) -> 0
C190: 2.1.5 | D190: Underground Injected Cable | E190: 1846 | G190: =SUMIF($E$42:$E$171,$D190,G$42:G$171) -> 0 | H190: 0 | I190: =SUMIF($E$42:$E$171,$D190,I$42:I$171) -> 0 | K190: =SUMIF($E$42:$E$171,$D190,K$42:K$171) -> 0 | M190: =SUM(I190:L190) -> 0
C192: 2.1.6 | D192: Overhead Transformers | E192: 1849 | G192: =SUMIF($E$42:$E$171,$D192,G$42:G$171) -> 0 | H192: 0 | I192: =SUMIF($E$42:$E$171,$D192,I$42:I$171) -> 0 | K192: =SUMIF($E$42:$E$171,$D192,K$42:K$171) -> 0 | M192: =SUM(I192:L192) -> 0
C194: 2.1.7 | D194: Underground Transformers | E194: 1850 | G194: =SUMIF($E$42:$E$171,$D194,G$42:G$171) -> 36822.06 | H194: 38245.095 | I194: =SUMIF($E$42:$E$171,$D194,I$42:I$171) -> 0 | K194: =SUMIF($E$42:$E$171,$D194,K$42:K$171) -> 0 | M194: =SUM(I194:L194) -> 0
C196: 2.1.8 | D196: Overhead Services | E196: 1855 | G196: =SUMIF($E$42:$E$171,$D196,G$42:G$171) -> 0 | H196: 0 | I196: =SUMIF($E$42:$E$171,$D196,I$42:I$171) -> 0 | K196: =SUMIF($E$42:$E$171,$D196,K$42:K$171) -> 0 | M196: =SUM(I196:L196) -> 0
C198: 2.1.9 | D198: RTU's | E198: 1981 | G198: =SUMIF($E$42:$E$171,$D198,G$42:G$171) -> 0 | H198: 0 | I198: =SUMIF($E$42:$E$171,$D198,I$42:I$171) -> 0 | K198: =SUMIF($E$42:$E$171,$D198,K$42:K$171) -> 0 | M198: =SUM(I198:L198) -> 0
C200: 2.1.10 | D200: System Supervisory Equipment | E200: 1980 | G200: =SUMIF($E$42:$E$171,$D200,G$42:G$171) -> 2567.09 | H200: 0 | I200: =SUMIF($E$42:$E$171,$D200,I$42:I$171) -> 0 | K200: =SUMIF($E$42:$E$171,$D200,K$42:K$171) -> 0 | M200: =SUM(I200:L200) -> 0
C202: 2.1.11 | D202: Distribution Station Equipment - Normally Primary below 50 kV | E202: 1820 | G202: =SUMIF($E$42:$E$171,$D202,G$42:G$171) -> 473855.82 | H202: 0 | I202: 0 | K202: 0 | M202: 0
C204: 2.1.12 | D204: Transformer Station Equipment - Normally Primary above 50 kV | E204: 1815 | G204: 0 | H204: 0 | I204: 0 | K204: 0 | M204: 0
C206: 2.1.13 | D206: Land Rights | E206: 1612 | G206: 0 | H206: 0 | I206: 0 | K206: 0 | M206: 0
C208: 2.1.14
D211: Total Capital Costs | G211: =SUM(G182:G209) -> 2247302.96 | H211: =SUM(H182:H209) -> 508280.7 | I211: =SUM(I182:I209) -> 45830.46 | K211: =SUM(K182:K209) -> 0 | M211: =SUM(M182:M209) -> 45830.46
G212: =G211-G110-G86-G62-G135 -> 0 | H212: =H211-H110-H86-H62-H135 -> 0 | I212: =I211-I110-I86-I62-I135 -> 0 | K212: =K211-K110-K86-K62-K135 -> 0 | L212: =L211-L110-L86-L62-L135 -> 0 | M212: =M211-M110-M86-M62-M135 -> 0 | N212: =N211-N110-N86-N62-N135 -> 0

Sheet 3a. ICM_by component
A1: Asset | B1: Asset Description | C1: Component | D1: Old Useful Lives | E1: New Useful Lives | F1: 2012-Additions | G1: 2012-NBV ** | H1: 2013-Additions | I1: 2014-Additions | J1: 2012 Depreciation | K1: 2013 Depreciation | L1: 2014-Depreciation | M1: 2015-Depreciation
A3: 1830 | B3: Poles | D3: 25 | E3: 45 | F3: 110.57 | G3: =F3-J3 -> 108.36 | J3: =+ROUND(F3/D3/2,2) -> 2.21 | K3: =G3/(E3-1)+ROUND(H3/E3/2,2) -> 2.462727273 | L3: =G3/(E3-1)+(H3/E3)+ROUND(I3/E3/2,2) -> 2.462727273 | M3: =G3/(E3-1)+(H3/F3)+(I3/F3) -> 2.462727273
A5: 1835 | B5: Overhead Conductor | D5: 25 | E5: 45 | F5: 663.98 | G5: =F5-J5 -> 650.7 | J5: =+ROUND(F5/D5/2,2) -> 13.28 | K5: =G5/(E5-1)+ROUND(H5/E5/2,2) -> 14.78863636 | L5: =G5/(E5-1)+(H5/E5)+ROUND(I5/E5/2,2) -> 14.78863636 | M5: =G5/(E5-1)+(H5/F5)+(I5/F5) -> 14.78863636
A7: 1840 | B7: Underground Conduit
C8: Duct | D8: 25 | E8: 60 | F8: 696879 | G8: =F8-J8 -> 682941.42 | H8: 1614.04 | J8: =+ROUND(F8/D8/2,2) -> 13937.58 | K8: =G8/(E8-1)+ROUND(H8/E8/2,2) -> 11588.72831 | L8: =G8/(E8-1)+(H8/E8)+ROUND(I8/E8/2,2) -> 11602.17897 | M8: =(G8/(E8-1))+(H8/E8) -> 11602.17897
C9: Vaults | D9: 25 | E9: 60 | F9: 157511 | G9: =F9-J9 -> 154360.78 | H9: 159187.346 | J9: 3150.22 | K9: 3942.844407 | L9: 5269.40684 | M9: =(G9/(E9-1))+(H9/E9) -> 5269.40684
C10: Handholes | D10: 25 | E10: 60 | F10: 16387 | G10: 16059.26 | H10: 95.12 | J10: 327.74 | K10: 272.9808475 | L10: 273.7761808 | M10: 273.7761808
C11: Manholes | D11: 25 | E11: 60 | F11: 80656.77 | G11: 79043.63 | H11: 266.35 | J11: 1613.14 | K11: 1341.942542 | L11: 1344.161709 | M11: 1344.161709
C12: Outdoor Submersible Vault | D12: 25 | E12: 35 | H12: 11671.909 | I12: 45830.46 | J12: 0 | K12: =G12/(E12-1)+ROUND(H12/E12/2,2) -> 166.74 | L12: =G12/(E12-1)+(H12/E12)+ROUND(I12/E12/2,2) -> 988.2031143 | M12: =(G12/(E12-1))+(H12/E12)+(I12/E12) -> 1642.924829
C13: Pad Mount Transformer | D13: 25 | E13: 40 | H13: 350 | J13: 0 | K13: =G13/(E13-1)+ROUND(H13/E13/2,2) -> 4.38 | L13: =G13/(E13-1)+(H13/E13)+ROUND(I13/E13/2,2) -> 8.75 | M13: =(G13/(E13-1))+(H13/E13)+(I13/E13) -> 8.75
A15: 1845 | B15: Underground Conductor
C16: Underground Cable | D16: 25 | E16: 50 | F16: 649242.19 | G16: =F16-J16 -> 636257.35 | H16: 230530.14 | J16: =+ROUND(F16/D16/2,2) -> 12984.84 | K16: =G16/(E16-1)+ROUND(H16/E16/2,2) -> 15290.14388 | L16: =G16/(E16-1)+(H16/E16)+ROUND(I16/E16/2,2) -> 17595.44668 | M16: 17595.44668
C17: Switches | D17: 25 | E17: 50 | F17: 132607.5 | G17: 129955.35 | H17: 66320.7 | J17: =+ROUND(F17/D17/2,2) -> 2652.15 | K17: =G17/(E17-1)+ROUND(H17/E17/2,2) -> 3315.36 | L17: =G17/(E17-1)+(H17/E17)+ROUND(I17/E17/2,2) -> 3978.564 | M17: 3978.564
A20: 1850 | B20: Underground Transformers
C21: Pad Mount Transformer | D21: 25 | E21: 40 | F21: 36822.06 | G21: 36085.62 | J21: =+ROUND(F21/D21/2,2) -> 736.44 | K21: =G21/(E21-1)+ROUND(H21/E21/2,2) -> 925.2723077 | L21: =G21/(E21-1)+(H21/E21)+ROUND(I21/E21/2,2) -> 925.2723077 | M21: 925.2723077
C22: Vault Transformer | D22: 25 | E22: 40 | G22: 0 | H22: 38245.095 | J22: =+ROUND(F22/D22/2,2) -> 0 | K22: =G22/(E22-1)+ROUND(H22/E22/2,2) -> 478.06 | L22: =G22/(E22-1)+(H22/E22)+ROUND(I22/E22/2,2) -> 956.127375 | M22: 956.127375
C23: Pole Top Transformer | D23: 25 | E23: 40 | G23: 0
A25: 1980 | B25: System Supervisory Equipment
D26: 15 | E26: 20 | F26: 2567.09 | G26: 2481.52 | J26: =+ROUND(F26/D26/2,2) -> 85.57 | K26: =G26/(E26-1)+ROUND(H26/E26/2,2) -> 130.6063158 | L26: =G26/(E26-1)+(H26/E26)+ROUND(I26/E26/2,2) -> 130.6063158 | M26: 130.6063158
A28: 1820 | B28: Distribution Station Equipment - Normally Primary below 50 kV | C28: Circuit Breaker | D28: 30 | E28: 50 | F28: 1207.804427 | G28: 1187.674427 | J28: =+ROUND(F28/D28/2,2) -> 20.13 | K28: =G28/(E28-1)+ROUND(H28/E28/2,2) -> 24.23825361 | L28: =G28/(E28-1)+(H28/E28)+ROUND(I28/E28/2,2) -> 24.23825361 | M28: 24.23825361
C29: Station Metal Clad Switchgear | D29: 30 | E29: 50 | F29: 335385.5156 | G29: 329795.7556 | J29: =+ROUND(F29/D29/2,2) -> 5589.76 | K29: =G29/(E29-1)+ROUND(H29/E29/2,2) -> 6730.525624 | L29: =G29/(E29-1)+(H29/E29)+ROUND(I29/E29/2,2) -> 6730.525624 | M29: 6730.525624
C30: Protective Relays | D30: 30 | E30: 20 | F30: 137262.5 | G30: 134974.79 | J30: =+ROUND(F30/D30/2,2) -> 2287.71 | K30: =G30/(E30-1)+ROUND(H30/E30/2,2) -> 7103.936316 | L30: =G30/(E30-1)+(H30/E30)+ROUND(I30/E30/2,2) -> 7103.936316 | M30: 7103.936316
B34: **Effective January 1, 2013, the Company reviewed the useful lives of all capital assets subject to amortization. This review was perfomed in accordance with IFRS IAS 16 and the requirement of the OEB to revise useful lives to conicide with IFRS. The estimates of useful lives of certain items of property, plant and equipment were revised which resulted in a change in amortization rates and years of amortization.

Sheet 3. Cost_of_Service_Parameters
B17: Sheet 3: Parameters and Rates
G19: 2012 | I19: 2013 | K19: 2014 | M19: 2015
B20: Cost of Capital
C21: Capital Structure
D22: Deemed Short-term Debt Capitalization | G22: 0.04 | I22: 0.04 | K22: 0.04 | M22: 0.04
D23: Deemed Long-term Debt Capitalization | G23: =60%-G22 -> 0.56 | I23: =G23-(I22-G22) -> 0.56 | K23: =I23-(K22-I22) -> 0.56 | M23: =K23-(M22-K22) -> 0.56
D24: Deemed Equity Capitalization | G24: =100%-G23-G25-G22 -> 0.4 | I24: =100%-I23-I25-I22 -> 0.4 | K24: =100%-K23-K25-K22 -> 0.4 | M24: =100%-M23-M25-M22 -> 0.4
D25: Preferred Shares
C26: Total | G26: =SUM(G22:G25) -> 1 | I26: =SUM(I22:I25) -> 1 | K26: =SUM(K22:K25) -> 1 | M26: =SUM(M22:M25) -> 1
C28: Cost of Capital Parameters
D29: Deemed Short-term Debt Rate | G29: 0.0246 | I29: 0.0246 | K29: 0.0246 | M29: 0.0246
D30: Long-term Debt Rate (actual/embedded/deemed)1 | G30: 0.0501 | I30: 0.0501 | K30: 0.0501 | M30: 0.0501
D31: Target Return on Equity (ROE) | G31: 0.0958 | I31: 0.0958 | K31: 0.0958 | M31: 0.0958
D32: Return on Preferred Shares
C33: WACC | G33: =SUMPRODUCT(G22:G25,G29:G32) -> 0.06736 | I33: =SUMPRODUCT(I22:I25,I29:I32) -> 0.06736 | K33: =SUMPRODUCT(K22:K25,K29:K32) -> 0.06736 | M33: =SUMPRODUCT(M22:M25,M29:M32) -> 0.06736
B35: Working Capital Allowance
C36: Working Capital Allowance Rate | G36: 0.15 | I36: 0.15 | K36: 0.15 | M36: 0.15
C37: (% of the sum of Cost of Power + controllable expenses)
B39: Taxes/PILs
C40: Aggregate Corporate Income Tax Rate | G40: 0.2406 | I40: 0.265 | K40: 0.2423 | M40: 0.2423
C41: Capital Tax (until July 1st, 2010) | G41: 0 | I41: 0 | K41: 0 | M41: 0
B45: CCA Rates
C46: Poles - CCA Class | G46: 47 | I46: 47 | K46: 47 | M46: 47
C47: Pole - CCA Rate | G47: 0.08 | I47: 0.08 | K47: 0.08 | M47: 0.08
C49: Overhead Conductor - CCA Class | G49: 47 | I49: 47 | K49: 47 | M49: 47
C50: Overhead Conductor - CCA Rate | G50: 0.08 | I50: 0.08 | K50: 0.08 | M50: 0.08
C52: Underground Conduit - CCA Class | G52: 47 | I52: 47 | K52: 47 | M52: 47
C53: Underground Conduit - CCA Rate | G53: 0.08 | I53: 0.08 | K53: 0.08 | M53: 0.08
C55: Underground Conductor - CCA Class | G55: 47 | I55: 47 | K55: 47 | M55: 47
C56: Underground Conductor - CCA Rate | G56: 0.08 | I56: 0.08 | K56: 0.08 | M56: 0.08
C58: U/G Injected Cable - CCA Class | G58: 47 | I58: 47 | K58: 47 | M58: 47
C59: U/G Injected Cable - CCA Rate | G59: 0.08 | I59: 0.08 | K59: 0.08 | M59: 0.08
C61: Overhead Transformers - CCA Class | G61: 47 | I61: 47 | K61: 47 | M61: 47
C62: Overhead Transformers - CCA Rate | G62: 0.08 | I62: 0.08 | K62: 0.08 | M62: 0.08
C64: Underground Transformers - CCA Class | G64: 47 | I64: 47 | K64: 47 | M64: 47
C65: Underground Transformers - CCA Rate | G65: 0.08 | I65: 0.08 | K65: 0.08 | M65: 0.08
C67: OH Services - CCA Class | G67: 47 | I67: 47 | K67: 47 | M67: 47
C68: OH Services - CCA Rate | G68: 0.08 | I68: 0.08 | K68: 0.08 | M68: 0.08
C70: RTU's - CCA Class | G70: 8 | I70: 8 | K70: 8 | M70: 8
C71: RUT's - CCA Rate | G71: 0.2 | I71: 0.2 | K71: 0.2 | M71: 0.2
C73: System Supervisory Equipment - CCA Class | G73: 8 | I73: 8 | K73: 8 | M73: 8
C74: System Supervisory Equipment - CCA Rate | G74: 0.2 | I74: 0.2 | K74: 0.2 | M74: 0.2
C76: Distribution Station Equipment - CCA Class | G76: 47 | I76: 47 | K76: 47 | M76: 47
C77: Distribution Station Equipment - CCA Rate | G77: 0.08 | I77: 0.08 | K77: 0.08 | M77: 0.08
C79: Transformer Station Equipment - CCA Class | G79: 47 | I79: 47 | K79: 47 | M79: 47
C80: Transformer Station Equipment - CCA Rate | G80: 0.08 | I80: 0.08 | K80: 0.08 | M80: 0.08
C82: Land Rights - CCA Class
C83: Land Rights - CCA Rate
B86: Assumptions
B87: 1 | C87: Fiscal calendar year (January 1 to December 31) used.
B88: 3 | C88: Amortization is done on a striaght line basis and no "half-year" rule applied.

Sheet 4. ICM_Assets_and_Rate_Base
B17: Sheet 4: ICM Assets - Net Book Value
G18: 2012 Actual | I18: 2013 Actual | K18: 2014 Actual | M18: 2015-Forecast
B19: Net Fixed Assets - Poles
C21: Gross Book Value
D22: Opening Balance | I22: =G25 -> 110.57 | K22: =I25 -> 110.57 | M22: =K25 -> 110.57
D23: Capital Additions during year (from ICM Costs) | G23: ='2. ICM_Costs'!G182 -> 110.57 | I23: ='2. ICM_Costs'!H182 -> 0 | K23: ='2. ICM_Costs'!I182 -> 0 | M23: ='2. ICM_Costs'!K182 -> 0
D24: Retirements/Removals (if applicable)
D25: Closing Balance | G25: =G22+G23-G24 -> 110.57 | I25: =I22+I23-I24 -> 110.57 | K25: =K22+K23-K24 -> 110.57 | M25: =M22+M23-M24 -> 110.57
C27: Accumulated Depreciation
D28: Opening Balance | I28: =G31 -> -2.21 | K28: =I31 -> -4.672727273 | M28: =K31 -> -7.135454545
D29: Amortization expense during year | G29: =-'3a. ICM_by component'!J3 -> -2.21 | I29: =-'3a. ICM_by component'!K3 -> -2.462727273 | K29: =-'3a. ICM_by component'!L3 -> -2.462727273 | M29: =-'3a. ICM_by component'!M3 -> -2.462727273
D30: Retirements/Removals (if applicable)
D31: Closing Balance | G31: =G28+G29-G30 -> -2.21 | I31: =I28+I29-I30 -> -4.672727273 | K31: =K28+K29-K30 -> -7.135454545 | M31: =M28+M29-M30 -> -9.598181818
C33: Net Book Value
D34: Opening Balance | G34: =G22+G28 -> 0 | I34: =I22+I28 -> 108.36 | K34: =K22+K28 -> 105.8972727 | M34: 103.4345455
D35: Closing Balance | G35: =G25+G31 -> 108.36 | I35: =I25+I31 -> 105.8972727 | K35: =K25+K31 -> 103.4345455 | M35: =M25+M31 -> 100.9718182
D36: Incremental CAPEX | G36: =G35 -> 108.36 | I36: =I35 -> 105.8972727 | K36: =K35 -> 103.4345455 | M36: =M35 -> 100.9718182
B38: Net Fixed Assets - Overhead Conductor
C40: Gross Book Value
D41: Opening Balance | I41: =G44 -> 663.92 | K41: =I44 -> 663.92 | M41: =K44 -> 663.92
D42: Capital Additions during year (from ICM Costs) | G42: ='2. ICM_Costs'!G184 -> 663.92 | I42: ='2. ICM_Costs'!F184 -> 0 | K42: ='2. ICM_Costs'!I184 -> 0 | M42: ='2. ICM_Costs'!K184 -> 0
D43: Retirements/Removals (if applicable)
D44: Closing Balance | G44: =G41+G42-G43 -> 663.92 | I44: =I41+I42-I43 -> 663.92 | K44: =K41+K42-K43 -> 663.92 | M44: =M41+M42-M43 -> 663.92
C46: Accumulated Depreciation
D47: Opening Balance | I47: =G50 -> -13.28 | K47: =I50 -> -28.06863636 | M47: =K50 -> -42.85727273
D48: Amortization expense during year | G48: =-'3a. ICM_by component'!J5 -> -13.28 | I48: =-'3a. ICM_by component'!K5 -> -14.78863636 | K48: =-'3a. ICM_by component'!L5 -> -14.78863636 | M48: =-'3a. ICM_by component'!M5 -> -14.78863636
D49: Retirements/Removals (if applicable)
D50: Closing Balance | G50: =G47+G48-G49 -> -13.28 | I50: =I47+I48-I49 -> -28.06863636 | K50: =K47+K48-K49 -> -42.85727273 | M50: =M47+M48-M49 -> -57.64590909
C52: Net Book Value
D53: Opening Balance | G53: =G41+G47 -> 0 | I53: =I41+I47 -> 650.64 | K53: =K41+K47 -> 635.8513636 | M53: 621.0627273
D54: Closing Balance | G54: =G44+G50 -> 650.64 | I54: =I44+I50 -> 635.8513636 | K54: =K44+K50 -> 621.0627273 | M54: =M44+M50 -> 606.2740909
D55: Incremental CAPEX | G55: =G54 -> 650.64 | I55: =I54 -> 635.8513636 | K55: =K54 -> 621.0627273 | M55: =M54 -> 606.2740909
B57: Net Fixed Assets - Underground Conduit
C59: Gross Book Value
D60: Opening Balance | I60: =G63 -> 951433.81 | K60: =I63 -> 1124618.575 | M60: =K63 -> 1170449.035
D61: Capital Additions during year (from ICM Costs) | G61: ='2. ICM_Costs'!G186 -> 951433.81 | I61: ='2. ICM_Costs'!H186 -> 173184.765 | K61: ='2. ICM_Costs'!I186 -> 45830.46 | M61: ='2. ICM_Costs'!K186 -> 0
D62: Retirements/Removals (if applicable)
D63: Closing Balance | G63: =G60+G61-G62 -> 951433.81 | I63: =I60+I61-I62 -> 1124618.575 | K63: =K60+K61-K62 -> 1170449.035 | M63: =M60+M61-M62 -> 1170449.035
C65: Accumulated Depreciation
D66: Opening Balance | I66: =G69 -> -19028.68 | K66: =I69 -> -36346.2961 | M66: =K69 -> -55832.77292
D67: Amortization expense during year | G67: =-SUM('3a. ICM_by component'!J8:J13) -> -19028.68 | I67: =-SUM('3a. ICM_by component'!K8:K13) -> -17317.6161 | K67: =-SUM('3a. ICM_by component'!L8:L13) -> -19486.47682 | M67: =-SUM('3a. ICM_by component'!M8:M13) -> -20141.19853
D68: Retirements/Removals (if applicable)
D69: Closing Balance | G69: =G66+G67-G68 -> -19028.68 | I69: =I66+I67-I68 -> -36346.2961 | K69: =K66+K67-K68 -> -55832.77292 | M69: =M66+M67-M68 -> -75973.97145
C71: Net Book Value
D72: Opening Balance | G72: =G60+G66 -> 0 | I72: =I60+I66 -> 932405.13 | K72: =K60+K66 -> 1088272.279 | M72: 1114616.262
D73: Closing Balance | G73: =G63+G69 -> 932405.13 | I73: =I63+I69 -> 1088272.279 | K73: =K63+K69 -> 1114616.262 | M73: =M63+M69 -> 1094475.064
D74: Incremental CAPEX | G74: =G73 -> 932405.13 | I74: =I73 -> 1088272.279 | K74: =K73 -> 1114616.262 | M74: =M73 -> 1094475.064
B76: Net Fixed Assets - Underground Conductor
C78: Gross Book Value
D79: Opening Balance | I79: =G82 -> 781849.69 | K79: =I82 -> 1078700.53 | M79: =K82 -> 1078700.53
D80: Capital Additions during year (from ICM Costs) | G80: ='2. ICM_Costs'!G188 -> 781849.69 | I80: ='2. ICM_Costs'!H188 -> 296850.84 | K80: ='2. ICM_Costs'!I188 -> 0 | M80: ='2. ICM_Costs'!K188 -> 0
D81: Retirements/Removals (if applicable)
D82: Closing Balance | G82: =G79+G80-G81 -> 781849.69 | I82: =I79+I80-I81 -> 1078700.53 | K82: =K79+K80-K81 -> 1078700.53 | M82: =M79+M80-M81 -> 1078700.53
C84: Accumulated Depreciation
D85: Opening Balance | I85: =G88 -> -15636.99 | K85: =I88 -> -34242.49388 | M85: =K88 -> -55816.50456
D86: Amortization expense during year | G86: =-SUM('3a. ICM_by component'!J16:J17) -> -15636.99 | I86: =-SUM('3a. ICM_by component'!K16:K17) -> -18605.50388 | K86: =-SUM('3a. ICM_by component'!L16:L17) -> -21574.01068 | M86: =-SUM('3a. ICM_by component'!M16:M18) -> -21574.01068
D87: Retirements/Removals (if applicable)
D88: Closing Balance | G88: =G85+G86-G87 -> -15636.99 | I88: =I85+I86-I87 -> -34242.49388 | K88: =K85+K86-K87 -> -55816.50456 | M88: =M85+M86-M87 -> -77390.51523
C90: Net Book Value
D91: Opening Balance | G91: =G79+G85 -> 0 | I91: =I79+I85 -> 766212.7 | K91: =K79+K85 -> 1044458.036 | M91: 1022884.025
D92: Closing Balance | G92: =G82+G88 -> 766212.7 | I92: =I82+I88 -> 1044458.036 | K92: =K82+K88 -> 1022884.025 | M92: =M82+M88 -> 1001310.015
D93: Incremental CAPEX | G93: =G92 -> 766212.7 | I93: =I92 -> 1044458.036 | K93: =K92 -> 1022884.025 | M93: =M92 -> 1001310.015
B95: Net Fixed Assets - U/G Injected Cable
C97: Gross Book Value
D98: Opening Balance
D99: Capital Additions during year (from ICM Costs) | I99: ='2. ICM_Costs'!F190 -> 0 | K99: ='2. ICM_Costs'!I190 -> 0 | M99: ='2. ICM_Costs'!K190 -> 0
D100: Retirements/Removals (if applicable)
D101: Closing Balance | G101: =G98+G99-G100 -> 0 | I101: =I98+I99-I100 -> 0 | K101: =K98+K99-K100 -> 0 | M101: =M98+M99-M100 -> 0
C103: Accumulated Depreciation
D104: Opening Balance
D105: Amortization expense during year | G105: =IF(ISERROR(-(G99/('3. Cost_of_Service_Parameters'!#REF!)+MIN((G98/'3. Cost_of_Service_Parameters'!#REF!),(G98+G104)))), 0, -(G99/('3. Cost_of_Service_Parameters'!#REF!)+MIN((G98/'3. Cost_of_Service_Parameters'!#REF!),(G98+G104)))) -> 0 | I105: =IF(ISERROR(-(I99/('3. Cost_of_Service_Parameters'!#REF!)+MIN((I98/'3. Cost_of_Service_Parameters'!#REF!),(I98+I104)))), 0, -(I99/('3. Cost_of_Service_Parameters'!#REF!)+MIN((I98/'3. Cost_of_Service_Parameters'!#REF!),(I98+I104)))) -> 0 | K105: =IF(ISERROR(-(K99/('3. Cost_of_Service_Parameters'!#REF!)+MIN((K98/'3. Cost_of_Service_Parameters'!#REF!),(K98+K104)))), 0, -(K99/('3. Cost_of_Service_Parameters'!#REF!)+MIN((K98/'3. Cost_of_Service_Parameters'!#REF!),(K98+K104)))) -> 0 | M105: =IF(ISERROR(-(M99/('3. Cost_of_Service_Parameters'!#REF!)+MIN((M98/'3. Cost_of_Service_Parameters'!#REF!),(M98+M104)))), 0, -(M99/('3. Cost_of_Service_Parameters'!#REF!)+MIN((M98/'3. Cost_of_Service_Parameters'!#REF!),(M98+M104)))) -> 0
D106: Retirements/Removals (if applicable)
D107: Closing Balance | G107: =G104+G105-G106 -> 0 | I107: =I104+I105-I106 -> 0 | K107: =K104+K105-K106 -> 0 | M107: =M104+M105-M106 -> 0
C109: Net Book Value
D110: Opening Balance | G110: =G98+G104 -> 0 | I110: =I98+I104 -> 0 | K110: =K98+K104 -> 0 | M110: 0
D111: Closing Balance | G111: =G101+G107 -> 0 | I111: =I101+I107 -> 0 | K111: =K101+K107 -> 0 | M111: =M101+M107 -> 0
D112: Incremental CAPEX | G112: =G111 -> 0 | I112: =I111 -> 0 | K112: =K111 -> 0 | M112: =M111 -> 0
B114: Net Fixed Assets - OH Transformers
C116: Gross Book Value
D117: Opening Balance
D118: Capital Additions during year (from ICM Costs) | I118: ='2. ICM_Costs'!F192 -> 0 | K118: ='2. ICM_Costs'!I192 -> 0 | M118: ='2. ICM_Costs'!K192 -> 0
D119: Retirements/Removals (if applicable)
D120: Closing Balance | G120: =G117+G118-G119 -> 0 | I120: =I117+I118-I119 -> 0 | K120: =K117+K118-K119 -> 0 | M120: =M117+M118-M119 -> 0
C122: Accumulated Depreciation
D123: Opening Balance
D124: Amortization expense during year | G124: =IF(ISERROR(-(G118/('3. Cost_of_Service_Parameters'!#REF!)+MIN((G117/'3. Cost_of_Service_Parameters'!#REF!),(G117+G123)))), 0, -(G118/('3. Cost_of_Service_Parameters'!#REF!)+MIN((G117/'3. Cost_of_Service_Parameters'!#REF!),(G117+G123)))) -> 0 | I124: =IF(ISERROR(-(I118/('3. Cost_of_Service_Parameters'!#REF!)+MIN((I117/'3. Cost_of_Service_Parameters'!#REF!),(I117+I123)))), 0, -(I118/('3. Cost_of_Service_Parameters'!#REF!)+MIN((I117/'3. Cost_of_Service_Parameters'!#REF!),(I117+I123)))) -> 0 | K124: =IF(ISERROR(-(K118/('3. Cost_of_Service_Parameters'!#REF!)+MIN((K117/'3. Cost_of_Service_Parameters'!#REF!),(K117+K123)))), 0, -(K118/('3. Cost_of_Service_Parameters'!#REF!)+MIN((K117/'3. Cost_of_Service_Parameters'!#REF!),(K117+K123)))) -> 0 | M124: =IF(ISERROR(-(M118/('3. Cost_of_Service_Parameters'!#REF!)+MIN((M117/'3. Cost_of_Service_Parameters'!#REF!),(M117+M123)))), 0, -(M118/('3. Cost_of_Service_Parameters'!#REF!)+MIN((M117/'3. Cost_of_Service_Parameters'!#REF!),(M117+M123)))) -> 0
D125: Retirements/Removals (if applicable)
D126: Closing Balance | G126: =G123+G124-G125 -> 0 | I126: =I123+I124-I125 -> 0 | K126: =K123+K124-K125 -> 0 | M126: =M123+M124-M125 -> 0
C128: Net Book Value
D129: Opening Balance | G129: =G117+G123 -> 0 | I129: =I117+I123 -> 0 | K129: =K117+K123 -> 0 | M129: 0
D130: Closing Balance | G130: =G120+G126 -> 0 | I130: =I120+I126 -> 0 | K130: =K120+K126 -> 0 | M130: =M120+M126 -> 0
D131: Incremental CAPEX | G131: =G130 -> 0 | I131: =I130 -> 0 | K131: =K130 -> 0 | M131: =M130 -> 0
B133: Net Fixed Assets - UG Transformers
C135: Gross Book Value
D136: Opening Balance | I136: =G139 -> 36822.06 | K136: =I139 -> 75067.155 | M136: =K139 -> 75067.155
D137: Capital Additions during year (from ICM Costs) | G137: ='2. ICM_Costs'!G194 -> 36822.06 | I137: ='2. ICM_Costs'!H194 -> 38245.095 | K137: ='2. ICM_Costs'!I194 -> 0 | M137: ='2. ICM_Costs'!K194 -> 0
D138: Retirements/Removals (if applicable)
D139: Closing Balance | G139: =G136+G137-G138 -> 36822.06 | I139: =I136+I137-I138 -> 75067.155 | K139: =K136+K137-K138 -> 75067.155 | M139: =M136+M137-M138 -> 75067.155
C141: Accumulated Depreciation
D142: Opening Balance | I142: =G145 -> -736.44 | K142: =I145 -> -2139.772308 | M142: =K145 -> -4021.17199
D143: Amortization expense during year | G143: =-SUM('3a. ICM_by component'!J21:J23) -> -736.44 | I143: =-SUM('3a. ICM_by component'!K21:K22) -> -1403.332308 | K143: =-SUM('3a. ICM_by component'!L21:L22) -> -1881.399683 | M143: =-SUM('3a. ICM_by component'!M21:M23) -> -1881.399683
D144: Retirements/Removals (if applicable)
D145: Closing Balance | G145: =G142+G143-G144 -> -736.44 | I145: =I142+I143-I144 -> -2139.772308 | K145: =K142+K143-K144 -> -4021.17199 | M145: =M142+M143-M144 -> -5902.571673
C147: Net Book Value
D148: Opening Balance | G148: =G136+G142 -> 0 | I148: =I136+I142 -> 36085.62 | K148: =K136+K142 -> 72927.38269 | M148: 71045.98301
D149: Closing Balance | G149: =G139+G145 -> 36085.62 | I149: =I139+I145 -> 72927.38269 | K149: =K139+K145 -> 71045.98301 | M149: =M139+M145 -> 69164.58333
D150: Incremental CAPEX | G150: =G149 -> 36085.62 | I150: =I149 -> 72927.38269 | K150: =K149 -> 71045.98301 | M150: =M149 -> 69164.58333
B152: Net Fixed Assets - OH Services
C154: Gross Book Value
D155: Opening Balance
D156: Capital Additions during year (from ICM Costs) | I156: ='2. ICM_Costs'!F196 -> 0 | K156: ='2. ICM_Costs'!I196 -> 0 | M156: ='2. ICM_Costs'!K196 -> 0
D157: Retirements/Removals (if applicable)
D158: Closing Balance | G158: =G155+G156-G157 -> 0 | I158: =I155+I156-I157 -> 0 | K158: =K155+K156-K157 -> 0 | M158: =M155+M156-M157 -> 0
C160: Accumulated Depreciation
D161: Opening Balance
D162: Amortization expense during year | G162: =IF(ISERROR(-(G156/('3. Cost_of_Service_Parameters'!#REF!)+MIN((G155/'3. Cost_of_Service_Parameters'!#REF!),(G155+G161)))), 0, -(G156/('3. Cost_of_Service_Parameters'!#REF!)+MIN((G155/'3. Cost_of_Service_Parameters'!#REF!),(G155+G161)))) -> 0 | I162: =IF(ISERROR(-(I156/('3. Cost_of_Service_Parameters'!#REF!)+MIN((I155/'3. Cost_of_Service_Parameters'!#REF!),(I155+I161)))), 0, -(I156/('3. Cost_of_Service_Parameters'!#REF!)+MIN((I155/'3. Cost_of_Service_Parameters'!#REF!),(I155+I161)))) -> 0 | K162: =IF(ISERROR(-(K156/('3. Cost_of_Service_Parameters'!#REF!)+MIN((K155/'3. Cost_of_Service_Parameters'!#REF!),(K155+K161)))), 0, -(K156/('3. Cost_of_Service_Parameters'!#REF!)+MIN((K155/'3. Cost_of_Service_Parameters'!#REF!),(K155+K161)))) -> 0 | M162: =IF(ISERROR(-(M156/('3. Cost_of_Service_Parameters'!#REF!)+MIN((M155/'3. Cost_of_Service_Parameters'!#REF!),(M155+M161)))), 0, -(M156/('3. Cost_of_Service_Parameters'!#REF!)+MIN((M155/'3. Cost_of_Service_Parameters'!#REF!),(M155+M161)))) -> 0
D163: Retirements/Removals (if applicable)
D164: Closing Balance | G164: =G161+G162-G163 -> 0 | I164: =I161+I162-I163 -> 0 | K164: =K161+K162-K163 -> 0 | M164: =M161+M162-M163 -> 0
C166: Net Book Value
D167: Opening Balance | G167: =G155+G161 -> 0 | I167: =I155+I161 -> 0 | K167: =K155+K161 -> 0 | M167: 0
D168: Closing Balance | G168: =G158+G164 -> 0 | I168: =I158+I164 -> 0 | K168: =K158+K164 -> 0 | M168: =M158+M164 -> 0
D169: Incremental CAPEX | G169: =G168 -> 0 | I169: =I168 -> 0 | K169: =K168 -> 0 | M169: =M168 -> 0
B171: Net Fixed Assets - RTUs
C173: Gross Book Value
D174: Opening Balance
D175: Capital Additions during year (from ICM Costs) | I175: ='2. ICM_Costs'!F198 -> 0 | K175: ='2. ICM_Costs'!I198 -> 0 | M175: ='2. ICM_Costs'!K198 -> 0
D176: Retirements/Removals (if applicable)
D177: Closing Balance | G177: =G174+G175-G176 -> 0 | I177: =I174+I175-I176 -> 0 | K177: =K174+K175-K176 -> 0 | M177: =M174+M175-M176 -> 0
C179: Accumulated Depreciation
D180: Opening Balance
D181: Amortization expense during year | G181: =IF(ISERROR(-(G175/('3. Cost_of_Service_Parameters'!#REF!)+MIN((G174/'3. Cost_of_Service_Parameters'!#REF!),(G174+G180)))), 0, -(G175/('3. Cost_of_Service_Parameters'!#REF!)+MIN((G174/'3. Cost_of_Service_Parameters'!#REF!),(G174+G180)))) -> 0 | I181: =IF(ISERROR(-(I175/('3. Cost_of_Service_Parameters'!#REF!)+MIN((I174/'3. Cost_of_Service_Parameters'!#REF!),(I174+I180)))), 0, -(I175/('3. Cost_of_Service_Parameters'!#REF!)+MIN((I174/'3. Cost_of_Service_Parameters'!#REF!),(I174+I180)))) -> 0 | K181: =IF(ISERROR(-(K175/('3. Cost_of_Service_Parameters'!#REF!)+MIN((K174/'3. Cost_of_Service_Parameters'!#REF!),(K174+K180)))), 0, -(K175/('3. Cost_of_Service_Parameters'!#REF!)+MIN((K174/'3. Cost_of_Service_Parameters'!#REF!),(K174+K180)))) -> 0 | M181: =IF(ISERROR(-(M175/('3. Cost_of_Service_Parameters'!#REF!)+MIN((M174/'3. Cost_of_Service_Parameters'!#REF!),(M174+M180)))), 0, -(M175/('3. Cost_of_Service_Parameters'!#REF!)+MIN((M174/'3. Cost_of_Service_Parameters'!#REF!),(M174+M180)))) -> 0
D182: Retirements/Removals (if applicable)
D183: Closing Balance | G183: =G180+G181-G182 -> 0 | I183: =I180+I181-I182 -> 0 | K183: =K180+K181-K182 -> 0 | M183: =M180+M181-M182 -> 0
C185: Net Book Value
D186: Opening Balance | G186: =G174+G180 -> 0 | I186: =I174+I180 -> 0 | K186: =K174+K180 -> 0 | M186: 0
D187: Closing Balance | G187: =G177+G183 -> 0 | I187: =I177+I183 -> 0 | K187: =K177+K183 -> 0 | M187: =M177+M183 -> 0
D188: Incremental CAPEX | G188: =G187 -> 0 | I188: =I187 -> 0 | K188: =K187 -> 0 | M188: =M187 -> 0
B191: Net Fixed Assets - System Supervisory Equipment
C193: Gross Book Value
D194: Opening Balance | I194: =G197 -> 2567.09 | K194: =I197 -> 2567.09 | M194: =K197 -> 2567.09
D195: Capital Additions during year (from ICM Costs) | G195: ='2. ICM_Costs'!G200 -> 2567.09
D196: Retirements/Removals (if applicable)
D197: Closing Balance | G197: =G194+G195-G196 -> 2567.09 | I197: =I194+I195-I196 -> 2567.09 | K197: =K194+K195-K196 -> 2567.09 | M197: =M194+M195-M196 -> 2567.09
C199: Accumulated Depreciation
D200: Opening Balance | I200: =G203 -> -85.57 | K200: =I203 -> -216.1763158 | M200: =K203 -> -346.7826316
D201: Amortization expense during year | G201: =-'3a. ICM_by component'!J26 -> -85.57 | I201: =-'3a. ICM_by component'!K26 -> -130.6063158 | K201: =-'3a. ICM_by component'!L26 -> -130.6063158 | M201: =-SUM('3a. ICM_by component'!M26) -> -130.6063158
D202: Retirements/Removals (if applicable)
D203: Closing Balance | G203: =G200+G201-G202 -> -85.57 | I203: =I200+I201-I202 -> -216.1763158 | K203: =K200+K201-K202 -> -346.7826316 | M203: =M200+M201-M202 -> -477.3889474
C205: Net Book Value
D206: Opening Balance | G206: =G194+G200 -> 0 | I206: =I194+I200 -> 2481.52 | K206: =K194+K200 -> 2350.913684 | M206: 2220.307368
D207: Closing Balance | G207: =G197+G203 -> 2481.52 | I207: =I197+I203 -> 2350.913684 | K207: =K197+K203 -> 2220.307368 | M207: =M197+M203 -> 2089.701053
D208: Incremental CAPEX | G208: =G207 -> 2481.52 | I208: =I207 -> 2350.913684 | K208: =K207 -> 2220.307368 | M208: =M207 -> 2089.701053
B211: Net Fixed Assets - Distribution Station Equipment
C213: Gross Book Value
D214: Opening Balance | I214: =G217 -> 473855.82 | K214: =I217 -> 473855.82 | M214: =K217 -> 473855.82
D215: Capital Additions during year (from ICM Costs) | G215: ='2. ICM_Costs'!G202 -> 473855.82 | I215: ='2. ICM_Costs'!F202 -> 0 | K215: ='2. ICM_Costs'!I202 -> 0 | M215: ='2. ICM_Costs'!K202 -> 0
D216: Retirements/Removals (if applicable)
D217: Closing Balance | G217: =G214+G215-G216 -> 473855.82 | I217: =I214+I215-I216 -> 473855.82 | K217: =K214+K215-K216 -> 473855.82 | M217: =M214+M215-M216 -> 473855.82
C219: Accumulated Depreciation
D220: Opening Balance | I220: =G223 -> -7897.6 | K220: =I223 -> -21756.30019 | M220: =K223 -> -35615.00039
D221: Amortization expense during year | G221: =-SUM('3a. ICM_by component'!J28:J30) -> -7897.6 | I221: =-SUM('3a. ICM_by component'!K28:K30) -> -13858.70019 | K221: =-SUM('3a. ICM_by component'!L28:L30) -> -13858.70019 | M221: =-SUM('3a. ICM_by component'!M28:M31) -> -13858.70019
D222: Retirements/Removals (if applicable)
D223: Closing Balance | G223: =G220+G221-G222 -> -7897.6 | I223: =I220+I221-I222 -> -21756.30019 | K223: =K220+K221-K222 -> -35615.00039 | M223: =M220+M221-M222 -> -49473.70058
C225: Net Book Value
D226: Opening Balance | G226: =G214+G220 -> 0 | I226: =I214+I220 -> 465958.22 | K226: =K214+K220 -> 452099.5198 | M226: 438240.8196
D227: Closing Balance | G227: =G217+G223 -> 465958.22 | I227: =I217+I223 -> 452099.5198 | K227: =K217+K223 -> 438240.8196 | M227: =M217+M223 -> 424382.1194
D228: Incremental CAPEX | G228: =G227 -> 465958.22 | I228: =I227 -> 452099.5198 | K228: =K227 -> 438240.8196 | M228: =M227 -> 424382.1194
B231: Net Fixed Assets - Transformer Station Equipment
C233: Gross Book Value
D234: Opening Balance
D235: Capital Additions during year (from ICM Costs) | I235: ='2. ICM_Costs'!F204 -> 0 | K235: ='2. ICM_Costs'!I204 -> 0 | M235: ='2. ICM_Costs'!K204 -> 0
D236: Retirements/Removals (if applicable)
D237: Closing Balance | G237: =G234+G235-G236 -> 0 | I237: =I234+I235-I236 -> 0 | K237: =K234+K235-K236 -> 0 | M237: =M234+M235-M236 -> 0
C239: Accumulated Depreciation
D240: Opening Balance
D241: Amortization expense during year | G241: =IF(ISERROR(-(G235/('3. Cost_of_Service_Parameters'!#REF!)+MIN((G234/'3. Cost_of_Service_Parameters'!#REF!),(G234+G240)))), 0, -(G235/('3. Cost_of_Service_Parameters'!#REF!)+MIN((G234/'3. Cost_of_Service_Parameters'!#REF!),(G234+G240)))) -> 0 | I241: =IF(ISERROR(-(I235/('3. Cost_of_Service_Parameters'!#REF!)+MIN((I234/'3. Cost_of_Service_Parameters'!#REF!),(I234+I240)))), 0, -(I235/('3. Cost_of_Service_Parameters'!#REF!)+MIN((I234/'3. Cost_of_Service_Parameters'!#REF!),(I234+I240)))) -> 0 | K241: =IF(ISERROR(-(K235/('3. Cost_of_Service_Parameters'!#REF!)+MIN((K234/'3. Cost_of_Service_Parameters'!#REF!),(K234+K240)))), 0, -(K235/('3. Cost_of_Service_Parameters'!#REF!)+MIN((K234/'3. Cost_of_Service_Parameters'!#REF!),(K234+K240)))) -> 0 | M241: =IF(ISERROR(-(M235/('3. Cost_of_Service_Parameters'!#REF!)+MIN((M234/'3. Cost_of_Service_Parameters'!#REF!),(M234+M240)))), 0, -(M235/('3. Cost_of_Service_Parameters'!#REF!)+MIN((M234/'3. Cost_of_Service_Parameters'!#REF!),(M234+M240)))) -> 0
D242: Retirements/Removals (if applicable)
D243: Closing Balance | G243: =G240+G241-G242 -> 0 | I243: =I240+I241-I242 -> 0 | K243: =K240+K241-K242 -> 0 | M243: =M240+M241-M242 -> 0
C245: Net Book Value
D246: Opening Balance | G246: =G234+G240 -> 0 | I246: =I234+I240 -> 0 | K246: =K234+K240 -> 0 | M246: 0
D247: Closing Balance | G247: =G237+G243 -> 0 | I247: =I237+I243 -> 0 | K247: =K237+K243 -> 0 | M247: =M237+M243 -> 0
D248: Incremental CAPEX | G248: =G247 -> 0 | I248: =I247 -> 0 | K248: =K247 -> 0 | M248: =M247 -> 0
B251: Net Fixed Assets - Land Rights
C253: Gross Book Value
D254: Opening Balance
D255: Capital Additions during year (from ICM Costs) | I255: ='2. ICM_Costs'!F206 -> 0 | K255: ='2. ICM_Costs'!I206 -> 0 | M255: ='2. ICM_Costs'!K206 -> 0
D256: Retirements/Removals (if applicable)
D257: Closing Balance | G257: =G254+G255-G256 -> 0 | I257: =I254+I255-I256 -> 0 | K257: =K254+K255-K256 -> 0 | M257: =M254+M255-M256 -> 0
C259: Accumulated Depreciation
D260: Opening Balance
D261: Amortization expense during year | G261: =IF(ISERROR(-(G255/('3. Cost_of_Service_Parameters'!#REF!*2)+MIN((G254/'3. Cost_of_Service_Parameters'!#REF!),(G254+G260)))), 0, -(G255/('3. Cost_of_Service_Parameters'!#REF!*2)+MIN((G254/'3. Cost_of_Service_Parameters'!#REF!),(G254+G260)))) -> 0 | I261: =IF(ISERROR(-(I255/('3. Cost_of_Service_Parameters'!#REF!*2)+MIN((I254/'3. Cost_of_Service_Parameters'!#REF!),(I254+I260)))), 0, -(I255/('3. Cost_of_Service_Parameters'!#REF!*2)+MIN((I254/'3. Cost_of_Service_Parameters'!#REF!),(I254+I260)))) -> 0 | K261: =IF(ISERROR(-(K255/('3. Cost_of_Service_Parameters'!#REF!*2)+MIN((K254/'3. Cost_of_Service_Parameters'!#REF!),(K254+K260)))), 0, -(K255/('3. Cost_of_Service_Parameters'!#REF!*2)+MIN((K254/'3. Cost_of_Service_Parameters'!#REF!),(K254+K260)))) -> 0 | M261: =IF(ISERROR(-(M255/('3. Cost_of_Service_Parameters'!#REF!*2)+MIN((M254/'3. Cost_of_Service_Parameters'!#REF!),(M254+M260)))), 0, -(M255/('3. Cost_of_Service_Parameters'!#REF!*2)+MIN((M254/'3. Cost_of_Service_Parameters'!#REF!),(M254+M260)))) -> 0
D262: Retirements/Removals (if applicable)
D263: Closing Balance | G263: =G260+G261-G262 -> 0 | I263: =I260+I261-I262 -> 0 | K263: =K260+K261-K262 -> 0 | M263: =M260+M261-M262 -> 0
C265: Net Book Value
D266: Opening Balance | G266: =G254+G260 -> 0 | I266: =I254+I260 -> 0 | K266: =K254+K260 -> 0 | M266: 0
D267: Closing Balance | G267: =G257+G263 -> 0 | I267: =I257+I263 -> 0 | K267: =K257+K263 -> 0 | M267: =M257+M263 -> 0
D268: Incremental CAPEX | G268: =G267 -> 0 | I268: =I267 -> 0 | K268: =K267 -> 0 | M268: =M267 -> 0
D275: Additions | G275: =G23+G42+G61+G80+G99+G118+G137+G156+G175+G195+G215+G235+G255 -> 2247302.96 | H275: =H23+H42+H61+H80+H99+H118+H137+H156+H175+H195+H215+H235+H255 -> 0 | I275: =I23+I42+I61+I80+I99+I118+I137+I156+I175+I195+I215+I235+I255 -> 508280.7 | J275: =J23+J42+J61+J80+J99+J118+J137+J156+J175+J195+J215+J235+J255 -> 0 | K275: =K23+K42+K61+K80+K99+K118+K137+K156+K175+K195+K215+K235+K255 -> 45830.46 | L275: 0 | M275: =M23+M42+M61+M80+M99+M118+M137+M156+M175+M195+M215+M235+M255 -> 0
D276: Accumulated Incremental CAPEX | G276: =G36+G55+G74+G93+G112+G131+G150+G169+G188+G208+G228+G248+G268 -> 2203902.19 | H276: =H36+H55+H74+H93+H112+H131+H150+H169+H188+H208+H228+H248+H268 -> 0 | I276: =I36+I55+I74+I93+I112+I131+I150+I169+I188+I208+I228+I248+I268 -> 2660849.88 | J276: =J36+J55+J74+J93+J112+J131+J150+J169+J188+J208+J228+J248+J268 -> 0 | K276: =K36+K55+K74+K93+K112+K131+K150+K169+K188+K208+K228+K248+K268 -> 2649731.895 | L276: 0 | M276: =M36+M55+M74+M93+M112+M131+M150+M169+M188+M208+M228+M248+M268 -> 2592128.728
D277: Total Amortization | G277: =G29+G48+G67+G86+G105+G124+G143+G162+G181+G201+G221+G241+G261 -> -43400.77 | H277: =H29+H48+H67+H86+H105+H124+H143+H162+H181+H201+H221+H241+H261 -> 0 | I277: =I29+I48+I67+I86+I105+I124+I143+I162+I181+I201+I221+I241+I261 -> -51333.01016 | J277: =J29+J48+J67+J86+J105+J124+J143+J162+J181+J201+J221+J241+J261 -> 0 | K277: =K29+K48+K67+K86+K105+K124+K143+K162+K181+K201+K221+K241+K261 -> -56948.44505 | L277: 0 | M277: =M29+M48+M67+M86+M105+M124+M143+M162+M181+M201+M221+M241+M261 -> -57603.16676
... 4 more rows

Sheet 5. UCC_Calculation
A18: Sheet 6: CCA For PILs Calculation
A20: UCC/Class 47 | D20: 2012 | F20: 2013 | H20: 2014 | J20: 2015
D21: Actual | F21: Actual | H21: Actual | J21: Forecast
A23: Opening UCC | D23: 0 | F23: =D26-D31 -> 2154946.435 | H23: =F26-F31 -> 2470500.192 | J23: =H26-H31 -> 2316857.419
A24: Capital Additions | D24: ='4. ICM_Assets_and_Rate_Base'!G23+'4. ICM_Assets_and_Rate_Base'!G42+'4. ICM_Assets_and_Rate_Base'!G61+'4. ICM_Assets_and_Rate_Base'!G80+'4. ICM_Assets_and_Rate_Base'!G137+'4. ICM_Assets_and_Rate_Base'!G215 -> 2244735.87 | F24: ='4. ICM_Assets_and_Rate_Base'!I23+'4. ICM_Assets_and_Rate_Base'!I42+'4. ICM_Assets_and_Rate_Base'!I61+'4. ICM_Assets_and_Rate_Base'!I80+'4. ICM_Assets_and_Rate_Base'!I137 -> 508280.7 | H24: ='4. ICM_Assets_and_Rate_Base'!K61 -> 45830.46 | J24: ='4. ICM_Assets_and_Rate_Base'!M61 -> 0
A25: Retirements/Removals (if applicable)
A26: UCC Before Half Year Rule | D26: =SUM(D23:D24)-D25 -> 2244735.87 | F26: =SUM(F23:F24)-F25 -> 2663227.135 | H26: =SUM(H23:H24)-H25 -> 2516330.652 | J26: =SUM(J23:J24)-J25 -> 2316857.419
A27: Half Year Rule (1/2 Additions - Disposals) | D27: =IF(((D24-D25)/2)<0, 0, (D24-D25)/2) -> 1122367.935 | F27: =IF(((F24-F25)/2)<0, 0, (F24-F25)/2) -> 254140.35 | H27: =IF(((H24-H25)/2)<0, 0, (H24-H25)/2) -> 22915.23 | J27: =IF(((J24-J25)/2)<0, 0, (J24-J25)/2) -> 0
A28: Reduced UCC | D28: =D27+D23 -> 1122367.935 | F28: =F27+F23 -> 2409086.785 | H28: =H27+H23 -> 2493415.422 | J28: =J27+J23 -> 2316857.419
A29: CCA Rate Class | D29: 47 | F29: ='3. Cost_of_Service_Parameters'!G46 -> 47 | H29: ='3. Cost_of_Service_Parameters'!I46 -> 47 | J29: ='3. Cost_of_Service_Parameters'!K46 -> 47
A30: CCA Rate | D30: 0.08 | F30: ='3. Cost_of_Service_Parameters'!G47 -> 0.08 | H30: ='3. Cost_of_Service_Parameters'!I47 -> 0.08 | J30: ='3. Cost_of_Service_Parameters'!K47 -> 0.08
A31: CCA | D31: =D28*D30 -> 89789.4348 | F31: =F28*F30 -> 192726.9428 | H31: =H28*H30 -> 199473.2338 | J31: =J28*J30 -> 185348.5935
A32: Closing UCC | D32: =IF((D26-D31)<0, 0, D26-D31) -> 2154946.435 | F32: =IF((F26-F31)<0, 0, F26-F31) -> 2470500.192 | H32: =IF((H26-H31)<0, 0, H26-H31) -> 2316857.419 | J32: =IF((J26-J31)<0, 0, J26-J31) -> 2131508.825
A34: UCC/Class 8 | D34: =D20 -> 2012 | F34: =F20 -> 2013 | H34: 2014 | J34: =J20 -> 2015
D35: =D21 -> Actual | F35: Actual | H35: Actual | J35: =J21 -> Forecast
A37: Opening UCC | D37: 0 | F37: =D40-D45 -> 2310.381 | H37: =F40-F45 -> 1848.3048 | J37: =H40-H45 -> 1478.64384
A38: Capital Additions RTU's | D38: ='4. ICM_Assets_and_Rate_Base'!G195 -> 2567.09 | F38: ='2. ICM_Costs'!I198+'2. ICM_Costs'!I200 -> 0 | H38: ='2. ICM_Costs'!K198 -> 0 | J38: ='2. ICM_Costs'!M198 -> 0
A39: Retirements/Removals (if applicable)
A40: UCC Before Half Year Rule | D40: =SUM(D37:D38)-D39 -> 2567.09 | F40: =SUM(F37:F38)-F39 -> 2310.381 | H40: =SUM(H37:H38)-H39 -> 1848.3048 | J40: =SUM(J37:J38)-J39 -> 1478.64384
A41: Half Year Rule (1/2 Additions - Disposals) | D41: =IF((SUM(D38:D38)/2)<0, 0, SUM(D38:D38)/2) -> 1283.545 | F41: =IF((SUM(F38:F38)/2)<0, 0, SUM(F38:F38)/2) -> 0 | H41: =IF((SUM(H38:H38)/2)<0, 0, SUM(H38:H38)/2) -> 0 | J41: =IF((SUM(J38:J38)/2)<0, 0, SUM(J38:J38)/2) -> 0
A42: Reduced UCC | D42: =D41+D37 -> 1283.545 | F42: =F41+F37 -> 2310.381 | H42: =H41+H37 -> 1848.3048 | J42: =J41+J37 -> 1478.64384
A43: CCA Rate Class | D43: ='3. Cost_of_Service_Parameters'!G73 -> 8 | F43: ='3. Cost_of_Service_Parameters'!G70 -> 8 | H43: ='3. Cost_of_Service_Parameters'!I70 -> 8 | J43: ='3. Cost_of_Service_Parameters'!K70 -> 8
A44: CCA Rate | D44: ='3. Cost_of_Service_Parameters'!G74 -> 0.2 | F44: ='3. Cost_of_Service_Parameters'!G71 -> 0.2 | H44: ='3. Cost_of_Service_Parameters'!I71 -> 0.2 | J44: ='3. Cost_of_Service_Parameters'!K71 -> 0.2
A45: CCA | D45: =D44*D42 -> 256.709 | F45: =F44*F42 -> 462.0762 | H45: =H44*H42 -> 369.66096 | J45: =J44*J42 -> 295.728768
A46: Closing UCC | D46: =IF((D40-D45)<0, 0, D40-D45) -> 2310.381 | F46: =IF((F40-F45)<0, 0, F40-F45) -> 1848.3048 | H46: =IF((H40-H45)<0, 0, H40-H45) -> 1478.64384 | J46: =IF((J40-J45)<0, 0, J40-J45) -> 1182.915072
D50: =D24+D38 -> 2247302.96 | F50: ='4. ICM_Assets_and_Rate_Base'!I275 -> 508280.7 | H50: ='4. ICM_Assets_and_Rate_Base'!K275 -> 45830.46 | J50: ='4. ICM_Assets_and_Rate_Base'!M275 -> 0
D51: =D50-'4. ICM_Assets_and_Rate_Base'!G275 -> 0 | F51: =F50-'4. ICM_Assets_and_Rate_Base'!I275 -> 0 | H51: =H50-'4. ICM_Assets_and_Rate_Base'!K275 -> 0 | J51: =J50-'4. ICM_Assets_and_Rate_Base'!M275 -> 0

Sheet 6. ICMIRR
A11: Sheet 6: | C11: Incremental Capital Adjustment
C26: Return on Rate Base | E26: 2012 Actual | G26: 2013 Actual | I26: 2014 Actual | K26: 2015 Actual
C27: Incremental Capital CAPEX | F27: ='4. ICM_Assets_and_Rate_Base'!G23+'4. ICM_Assets_and_Rate_Base'!G42+'4. ICM_Assets_and_Rate_Base'!G61+'4. ICM_Assets_and_Rate_Base'!G80+'4. ICM_Assets_and_Rate_Base'!G99+'4. ICM_Assets_and_Rate_Base'!G118+'4. ICM_Assets_and_Rate_Base'!G137+'4. ICM_Assets_and_Rate_Base'!G195+'4. ICM_Assets_and_Rate_Base'!G215 -> 2247302.96 | H27: =F29+('4. ICM_Assets_and_Rate_Base'!I23+'4. ICM_Assets_and_Rate_Base'!I42+'4. ICM_Assets_and_Rate_Base'!I61+'4. ICM_Assets_and_Rate_Base'!I80+'4. ICM_Assets_and_Rate_Base'!I99+'4. ICM_Assets_and_Rate_Base'!I118+'4. ICM_Assets_and_Rate_Base'!I137+'4. ICM_Assets_and_Rate_Base'!I195+'4. ICM_Assets_and_Rate_Base'!I215) -> 2712182.89 | J27: =H29+('4. ICM_Assets_and_Rate_Base'!K23+'4. ICM_Assets_and_Rate_Base'!K42+'4. ICM_Assets_and_Rate_Base'!K61+'4. ICM_Assets_and_Rate_Base'!K80+'4. ICM_Assets_and_Rate_Base'!K99+'4. ICM_Assets_and_Rate_Base'!K118+'4. ICM_Assets_and_Rate_Base'!K137+'4. ICM_Assets_and_Rate_Base'!K195+'4. ICM_Assets_and_Rate_Base'!K215) -> 2706680.34 | L27: =J29+('4. ICM_Assets_and_Rate_Base'!M23+'4. ICM_Assets_and_Rate_Base'!M42+'4. ICM_Assets_and_Rate_Base'!M61+'4. ICM_Assets_and_Rate_Base'!M80+'4. ICM_Assets_and_Rate_Base'!M99+'4. ICM_Assets_and_Rate_Base'!M118+'4. ICM_Assets_and_Rate_Base'!M137+'4. ICM_Assets_and_Rate_Base'!M195+'4. ICM_Assets_and_Rate_Base'!M215) -> 2649731.895 | M27: B
C28: Depreciation Expense | F28: =-('4. ICM_Assets_and_Rate_Base'!G29+'4. ICM_Assets_and_Rate_Base'!G48+'4. ICM_Assets_and_Rate_Base'!G67+'4. ICM_Assets_and_Rate_Base'!G86+'4. ICM_Assets_and_Rate_Base'!G143+'4. ICM_Assets_and_Rate_Base'!G201+'4. ICM_Assets_and_Rate_Base'!G221) -> 43400.77 | H28: =-('4. ICM_Assets_and_Rate_Base'!I29+'4. ICM_Assets_and_Rate_Base'!I48+'4. ICM_Assets_and_Rate_Base'!I67+'4. ICM_Assets_and_Rate_Base'!I86+'4. ICM_Assets_and_Rate_Base'!I143+'4. ICM_Assets_and_Rate_Base'!I201+'4. ICM_Assets_and_Rate_Base'!I221) -> 51333.01016 | J28: =-('4. ICM_Assets_and_Rate_Base'!K29+'4. ICM_Assets_and_Rate_Base'!K48+'4. ICM_Assets_and_Rate_Base'!K67+'4. ICM_Assets_and_Rate_Base'!K86+'4. ICM_Assets_and_Rate_Base'!K143+'4. ICM_Assets_and_Rate_Base'!K201+'4. ICM_Assets_and_Rate_Base'!K221) -> 56948.44505 | L28: =-('4. ICM_Assets_and_Rate_Base'!M29+'4. ICM_Assets_and_Rate_Base'!M48+'4. ICM_Assets_and_Rate_Base'!M67+'4. ICM_Assets_and_Rate_Base'!M86+'4. ICM_Assets_and_Rate_Base'!M143+'4. ICM_Assets_and_Rate_Base'!M201+'4. ICM_Assets_and_Rate_Base'!M221) -> 57603.16676 | M28: C
C29: Incremental Capital CAPEX to be included in Rate Base | F29: =F27-F28 -> 2203902.19 | H29: =H27-H28 -> 2660849.88 | J29: =J27-J28 -> 2649731.895 | L29: =L27-L28 -> 2592128.728 | M29: D = B - C
C31: Deemed ShortTerm Debt % | D31: E | E31: ='3. Cost_of_Service_Parameters'!G22 -> 0.04 | F31: =F29*E31 -> 88156.0876 | G31: ='3. Cost_of_Service_Parameters'!I22 -> 0.04 | H31: =H29*G31 -> 106433.9952 | I31: ='3. Cost_of_Service_Parameters'!K22 -> 0.04 | J31: =J29*I31 -> 105989.2758 | K31: ='3. Cost_of_Service_Parameters'!M22 -> 0.04 | L31: =L29*K31 -> 103685.1491 | M31: G = D * E
C32: Deemed Long Term Debt % | D32: F | E32: ='3. Cost_of_Service_Parameters'!G23 -> 0.56 | F32: =F29*E32 -> 1234185.226 | G32: ='3. Cost_of_Service_Parameters'!I23 -> 0.56 | H32: =H29*G32 -> 1490075.933 | I32: ='3. Cost_of_Service_Parameters'!K23 -> 0.56 | J32: =J29*I32 -> 1483849.861 | K32: ='3. Cost_of_Service_Parameters'!M23 -> 0.56 | L32: =L29*K32 -> 1451592.088 | M32: H = D * F
C34: Short Term Interest | D34: I | E34: ='3. Cost_of_Service_Parameters'!G29 -> 0.0246 | F34: =E34*F31 -> 2168.639755 | G34: ='3. Cost_of_Service_Parameters'!I29 -> 0.0246 | H34: =G34*H31 -> 2618.276282 | I34: ='3. Cost_of_Service_Parameters'!K29 -> 0.0246 | J34: =I34*J31 -> 2607.336184 | K34: ='3. Cost_of_Service_Parameters'!M29 -> 0.0246 | L34: =K34*L31 -> 2550.654668 | M34: K = G * I
C35: Long Term Interest | D35: J | E35: ='3. Cost_of_Service_Parameters'!G30 -> 0.0501 | F35: =E35*F32 -> 61832.67984 | G35: ='3. Cost_of_Service_Parameters'!I30 -> 0.0501 | H35: =G35*H32 -> 74652.80423 | I35: ='3. Cost_of_Service_Parameters'!K30 -> 0.0501 | J35: =I35*J32 -> 74340.87804 | K35: ='3. Cost_of_Service_Parameters'!M30 -> 0.0501 | L35: =K35*L32 -> 72724.76359 | M35: L = H * J
C37: Return on Rate Base - Interest | F37: =SUM(F34:F35) -> 64001.3196 | H37: =SUM(H34:H35) -> 77271.08051 | J37: =SUM(J34:J35) -> 76948.21422 | L37: =SUM(L34:L35) -> 75275.41826 | M37: M = K + L
S39: aaa
C40: Deemed Equity % | D40: N | E40: ='3. Cost_of_Service_Parameters'!G24 -> 0.4 | F40: =E40*F29 -> 881560.876 | G40: ='3. Cost_of_Service_Parameters'!I24 -> 0.4 | H40: =G40*H29 -> 1064339.952 | I40: ='3. Cost_of_Service_Parameters'!K24 -> 0.4 | J40: =I40*J29 -> 1059892.758 | K40: ='3. Cost_of_Service_Parameters'!M24 -> 0.4 | L40: =K40*L29 -> 1036851.491 | M40: P = D * N
C42: Return on Rate Base -Equity | D42: O | E42: ='3. Cost_of_Service_Parameters'!G31 -> 0.0958 | F42: =F40*E42 -> 84453.53192 | G42: ='3. Cost_of_Service_Parameters'!I31 -> 0.0958 | H42: =H40*G42 -> 101963.7674 | I42: ='3. Cost_of_Service_Parameters'!K31 -> 0.0958 | J42: =J40*I42 -> 101537.7262 | K42: ='3. Cost_of_Service_Parameters'!M31 -> 0.0958 | L42: =L40*K42 -> 99330.37286 | M42: Q = P * O
C44: Return on Rate Base - Total | F44: =F37+F42 -> 148454.8515 | H44: =H37+H42 -> 179234.8479 | J44: =J37+J42 -> 178485.9404 | L44: =L37+L42 -> 174605.7911 | M44: R = M + Q
C47: Amortization Expense
C49: Amortization Expense - Incremental | D49: C | F49: =F28 -> 43400.77 | H49: =H28 -> 51333.01016 | J49: =J28 -> 56948.44505 | L49: =L28 -> 57603.16676 | M49: S
C52: Grossed up PIL's
C54: Regulatory Taxable Income | D54: O | F54: =F42 -> 84453.53192 | H54: =H42 -> 101963.7674 | J54: =J42 -> 101537.7262 | L54: =L42 -> 99330.37286 | M54: T
C56: Add Back Amortization Expense | D56: S | F56: =F49 -> 43400.77 | H56: =H49 -> 51333.01016 | J56: =J49 -> 56948.44505 | L56: =L49 -> 57603.16676 | M56: U
C58: Deduct CCA | F58: ='5. UCC_Calculation'!D31+'5. UCC_Calculation'!D45 -> 90046.1438 | H58: ='5. UCC_Calculation'!F31+'5. UCC_Calculation'!F45 -> 193189.019 | J58: ='5. UCC_Calculation'!H31+'5. UCC_Calculation'!H45 -> 199842.8948 | L58: ='5. UCC_Calculation'!J31+'5. UCC_Calculation'!J45 -> 185644.3223 | M58: V
C60: Incremental Taxable Income | F60: =F54+F56-F58 -> 37808.15812 | H60: =H54+H56-H58 -> -39892.24146 | J60: =J54+J56-J58 -> -41356.72349 | L60: =L54+L56-L58 -> -28710.78263 | M60: W = T + U - V
C62: Current Tax Rate (F1.1 Z-Factor Tax Changes) | D62: X | E62: ='3. Cost_of_Service_Parameters'!G40 -> 0.2406 | G62: ='3. Cost_of_Service_Parameters'!I40 -> 0.265 | I62: ='3. Cost_of_Service_Parameters'!K40 -> 0.2423 | K62: ='3. Cost_of_Service_Parameters'!M40 -> 0.2423
C64: PIL's Before Gross Up | F64: =E62*F60 -> 9096.642844 | H64: =G62*H60 -> -10571.44399 | J64: =I62*J60 -> -10020.7341 | L64: =K62*L60 -> -6956.622632 | M64: Y = W * X
C66: Incremental Grossed Up PIL's | F66: =F64*E62 -> 2188.652268 | H66: =H64*G62 -> -2801.432657 | J66: =J64*I62 -> -2428.023873 | L66: =L64*K62 -> -1685.589664 | M66: Z = Y / ( 1 - X )
C69: Ontario Capital Tax
C70: Incremental Capital CAPEX | F70: =F27 -> 2247302.96 | H70: =H27 -> 2712182.89 | J70: =J27 -> 2706680.34 | L70: =L27 -> 2649731.895 | M70: AA
C72: Less : Available Capital Exemption (if any) | M72: AB
C74: Incremental Capital CAPEX subject to OCT | F74: =SUM(F70:F73) -> 2247302.96 | H74: =SUM(H70:H73) -> 2712182.89 | J74: =SUM(J70:J73) -> 2706680.34 | L74: =SUM(L70:L73) -> 2649731.895 | M74: AC = AA - AB
C76: Ontario Capital Tax Rate (F1.1 Z-Factor Tax Changes) | D76: AD | E76: 0
C78: Incremental Ontario Capital Tax | F78: =E76*F74 -> 0 | H78: =G76*H74 -> 0 | J78: =I76*J74 -> 0 | L78: =K76*L74 -> 0 | M78: AE = AC * AD
C81: Incremental Revenue Requirement
C82: Return on Rate Base - Total | D82: Q | F82: =F44 -> 148454.8515 | H82: =H44 -> 179234.8479 | J82: =J44 -> 178485.9404 | L82: =L44 -> 174605.7911 | M82: AF
C83: Amortization Expense - Total | D83: S | F83: =F49 -> 43400.77 | H83: =H49 -> 51333.01016 | J83: =J49 -> 56948.44505 | L83: =L49 -> 57603.16676 | M83: AG
C84: Incremental Grossed Up PIL's | D84: Z | F84: =F66 -> 2188.652268 | H84: =H66 -> -2801.432657 | J84: =J66 -> -2428.023873 | L84: =L66 -> -1685.589664 | M84: AH
C85: Incremental Ontario Capital Tax | D85: AE | F85: =F78 -> 0 | H85: =H78 -> 0 | J85: =J78 -> 0 | L85: =L78 -> 0 | M85: AI
C87: Incremental Revenue Requirement | F87: =SUM(F82:F85) -> 194044.2738 | H87: =SUM(H82:H85) -> 227766.4254 | J87: =SUM(J82:J85) -> 233006.3616 | L87: =SUM(L82:L85) -> 230523.3682 | M87: AJ = AF + AG + AH + AI

Sheet 7. Funding Adder Revs
B13: This worksheet calculates the funding adder revenues.
B17: Sheet 7: ICM Funding Adder Revenues
J20: Account 1511 - Sub-account ICM Funding Adder Revenues
B22: Prescribed Interest Rates | C22: Approved Deferral and Variance Accounts | D22: CWIP | F22: Date | G22: Year | H22: Quarter | J22: Opening Balance (Principal) | K22: Funding Adder Revenues | L22: Interest Rate | M22: Interest | N22: Principal & Interest (Cumm.) | P22: Board Approved ICM Funding Adder | Q22: Board Approved ICM Funding Adder (Cumm.)
B24: 2006 Q1
B25: 2006 Q2 | C25: 0.0414 | D25: 0.0468
B26: 2006 Q3 | C26: 0.0459 | D26: 0.0505 | F26: 2012-05-01 | G26: =YEAR(F26) -> 2012 | H26: =IF(MONTH(F26)=0,"",IF(MONTH(F26)<4,"Q1",IF(MONTH(F26)<7,"Q2",IF(MONTH(F26)<10,"Q3","Q4")))) -> Q2 | I26: =CONCATENATE(G26," ",H26) -> 2012 Q2 | J26: 0 | L26: =VLOOKUP(I26,$B$24:$E$63,2) -> 0.0147 | P26: 20662.64 | Q26: =P26 -> 20662.64
B27: 2006 Q4 | C27: 0.0459 | D27: 0.0472 | F27: 2012-06-01 | G27: =YEAR(F27) -> 2012 | H27: =IF(MONTH(F27)=0,"",IF(MONTH(F27)<4,"Q1",IF(MONTH(F27)<7,"Q2",IF(MONTH(F27)<10,"Q3","Q4")))) -> Q2 | I27: =CONCATENATE(G27," ",H27) -> 2012 Q2 | J27: 0 | K27: 6291.18 | L27: =VLOOKUP(I27,$B$24:$E$63,2) -> 0.0147 | M27: =ROUND(J27*L27/12,2) -> 0 | N27: =K27+M27 -> 6291.18 | P27: 20662.64 | Q27: =P27+Q26 -> 41325.28
B28: 2007 Q1 | C28: 0.0459 | D28: 0.0472 | F28: 2012-07-01 | G28: =YEAR(F28) -> 2012 | H28: =IF(MONTH(F28)=0,"",IF(MONTH(F28)<4,"Q1",IF(MONTH(F28)<7,"Q2",IF(MONTH(F28)<10,"Q3","Q4")))) -> Q3 | I28: =CONCATENATE(G28," ",H28) -> 2012 Q3 | J28: =J27+K27 -> 6291.18 | K28: 18032.19 | L28: =VLOOKUP(I28,$B$24:$E$63,2) -> 0.0147 | M28: =ROUND(J28*L28/12,2) -> 7.71 | N28: =N27+K28+M28 -> 24331.08 | P28: 20662.64 | Q28: =Q27+P28 -> 61987.92
B29: 2007 Q2 | C29: 0.0459 | D29: 0.0472 | F29: 2012-08-01 | G29: 2012 | H29: Q3 | I29: 2012 Q3 | J29: =J28+K28 -> 24323.37 | K29: 19687.18 | L29: 0.0147 | M29: 29.8 | N29: =N28+K29+M29 -> 44048.06 | P29: 20662.64 | Q29: =Q28+P29 -> 82650.56
B30: 2007 Q3 | C30: 0.0459 | D30: 0.0518 | F30: 2012-09-01 | G30: 2012 | H30: Q3 | I30: 2012 Q3 | J30: 44010.55 | K30: 16898.77 | L30: 0.0147 | M30: 53.91 | N30: 61000.74 | P30: 20662.64 | Q30: 103313.2
B31: 2007 Q4 | C31: 0.0514 | D31: 0.0518 | F31: 2012-10-01 | G31: 2012 | H31: Q4 | I31: 2012 Q4 | J31: 60909.32 | K31: 20403.15 | L31: 0.0147 | M31: 74.61 | N31: 81478.5 | P31: 20662.64 | Q31: 123975.84
B32: 2008 Q1 | C32: 0.0514 | D32: 0.0518 | F32: 2012-11-01 | G32: 2012 | H32: Q4 | I32: 2012 Q4 | J32: 81312.47 | K32: 18961.77 | L32: 0.0147 | M32: 99.61 | N32: 100539.88 | P32: 20662.64 | Q32: 144638.48
B33: 2008 Q2 | C33: 0.0408 | D33: 0.0518 | F33: 2012-12-01 | G33: 2012 | H33: Q4 | I33: 2012 Q4 | J33: 100274.24 | K33: 16724.88 | L33: 0.0147 | M33: 122.84 | N33: 117387.6 | P33: 20662.64 | Q33: 165301.12
B34: 2008 Q3 | C34: 0.0335 | D34: 0.0543 | F34: 2013-01-01 | G34: 2013 | H34: Q1 | I34: 2013 Q1 | J34: 116999.12 | K34: 26534 | L34: 0.0147 | M34: 143.32 | N34: 144064.92 | P34: 20662.64 | Q34: 185963.76
B35: 2008 Q4 | C35: 0.0335 | D35: 0.0543 | F35: 2013-02-01 | G35: 2013 | H35: Q1 | I35: 2013 Q1 | J35: 143533.12 | K35: 21480.37 | L35: 0.0147 | M35: 175.83 | N35: 165721.12 | P35: 20662.64 | Q35: 206626.4
B36: 2009 Q1 | C36: 0.0245 | D36: 0.0661 | F36: 2013-03-01 | G36: 2013 | H36: Q1 | I36: 2013 Q1 | J36: 165013.49 | K36: 28116.54 | L36: 0.0147 | M36: 202.14 | N36: 194039.8 | P36: 20662.64 | Q36: 227289.04
B37: 2009 Q2 | C37: 0.01 | D37: 0.0661 | F37: 2013-04-01 | G37: 2013 | H37: Q2 | I37: 2013 Q2 | J37: 193130.03 | K37: 23170.48 | L37: 0.0147 | M37: 236.58 | N37: 217446.86 | P37: 20662.64 | Q37: 247951.68
B38: 2009 Q3 | C38: 0.0055 | D38: 0.0567 | F38: 2013-05-01 | G38: 2013 | H38: Q2 | I38: 2013 Q2 | J38: 216300.51 | K38: 19997.87 | L38: 0.0147 | M38: 264.97 | N38: 237709.7 | P38: 20662.64 | Q38: 268614.32
B39: 2009 Q4 | C39: 0.0055 | D39: 0.0466 | F39: 2013-06-01 | G39: 2013 | H39: Q2 | I39: 2013 Q2 | J39: 236298.38 | K39: 12729.33 | L39: 0.0147 | M39: 289.47 | N39: 250728.5 | P39: 20662.64 | Q39: 289276.96
B40: 2010 Q1 | C40: 0.0055 | D40: 0.0434 | F40: 2013-07-01 | G40: 2013 | H40: Q3 | I40: 2013 Q3 | J40: 249027.71 | K40: 19785.68 | L40: 0.0147 | M40: 305.06 | N40: 270819.24 | P40: 20662.64 | Q40: 309939.6
B41: 2010 Q2 | C41: 0.0055 | D41: 0.0434 | F41: 2013-08-01 | G41: 2013 | H41: Q3 | I41: 2013 Q3 | J41: 268813.39 | K41: 17753.13 | L41: 0.0147 | M41: 329.3 | N41: 288901.67 | P41: 20662.64 | Q41: 330602.24
B42: 2010 Q3 | C42: 0.0089 | D42: 0.0466 | F42: 2013-09-01 | G42: 2013 | H42: Q3 | I42: 2013 Q3 | J42: 286566.52 | K42: 18558.39 | L42: 0.0147 | M42: 351.04 | N42: 307811.1 | P42: 20662.64 | Q42: 351264.88
B43: 2010 Q4 | C43: 0.012 | D43: 0.0401 | F43: 2013-10-01 | G43: 2013 | H43: Q4 | I43: 2013 Q4 | J43: 305124.91 | K43: 18734.18 | L43: 0.0147 | M43: 373.78 | N43: 326919.06 | P43: 20662.64 | Q43: 371927.52
B44: 2011 Q1 | C44: 0.0147 | D44: 0.0429 | F44: 2013-11-01 | G44: 2013 | H44: Q4 | I44: 2013 Q4 | J44: 323859.09 | K44: 16500.96 | L44: 0.0147 | M44: 396.73 | N44: 343816.75 | P44: 20662.64 | Q44: 392590.16
B45: 2011 Q2 | C45: 0.0147 | D45: 0.0429 | F45: 2013-12-01 | G45: 2013 | H45: Q4 | I45: 2013 Q4 | J45: 340360.05 | K45: 19043.59 | L45: 0.0147 | M45: 416.94 | N45: 363277.28 | P45: 20662.64 | Q45: 413252.8
B46: 2011 Q3 | C46: 0.0147 | D46: 0.0429 | F46: 2014-01-01 | G46: 2014 | H46: Q1 | I46: 2014 Q1 | J46: 359403.64 | K46: 28807.4 | L46: 0.0147 | M46: 440.27 | N46: 392524.95 | P46: 20662.64 | Q46: 433915.44
B47: 2011 Q4 | C47: =C46 -> 0.0147 | D47: 0.0392 | F47: 2014-02-01 | G47: 2014 | H47: Q1 | I47: 2014 Q1 | J47: 388211.04 | K47: 23153 | L47: 0.0147 | M47: 475.56 | N47: 416153.51 | P47: 20662.64 | Q47: 454578.08
B48: 2012 Q1 | C48: 0.0147 | D48: 0.0392 | F48: 2014-03-01 | G48: 2014 | H48: Q1 | I48: 2014 Q1 | J48: 411364.04 | K48: 29343.74 | L48: 0.0147 | M48: 503.92 | N48: 446001.17 | P48: 20662.64 | Q48: 475240.72
B49: 2012 Q2 | C49: 0.0147 | D49: 0.0323 | F49: 2014-04-01 | G49: 2014 | H49: Q2 | I49: 2014 Q2 | J49: 440707.78 | K49: 21520.09 | L49: 0.0147 | M49: 539.87 | N49: 468061.13 | P49: 20662.64 | Q49: 495903.36
B50: 2012 Q3 | C50: 0.0147 | D50: 0.0323 | F50: 2014-05-01 | G50: 2014 | H50: Q2 | I50: 2014 Q2 | J50: 462227.87 | K50: 19855.24 | L50: 0.0147 | M50: 566.23 | N50: 488482.6 | P50: 20662.64 | Q50: 516566
B51: 2012 Q4 | C51: 0.0147 | D51: 0.037 | F51: 2014-06-01 | G51: 2014 | H51: Q2 | I51: 2014 Q2 | J51: =J50+K50 -> 482083.11 | K51: 16851 | L51: 0.0147 | M51: 590.55 | N51: 505924.15 | P51: 20662.64 | Q51: 537228.64
B52: 2013 Q1 | C52: 0.0147 | D52: 0.037 | F52: 2014-07-01 | G52: 2014 | H52: Q3 | I52: 2014 Q3 | J52: 498934.11 | K52: 17498.8 | L52: 0.0147 | M52: 611.19 | N52: 524034.14 | P52: 20662.64 | Q52: 557891.28
B53: 2013 Q2 | C53: 0.0147 | D53: 0.0317 | F53: 2014-08-01 | G53: 2014 | H53: Q3 | I53: 2014 Q3 | J53: 516432.91 | K53: 16434.51 | L53: 0.0147 | M53: 632.63 | N53: 541101.28 | P53: 20662.64 | Q53: 578553.92
B54: 2013 Q3 | C54: 0.0147 | D54: 0.0317 | F54: 2014-09-01 | G54: 2014 | H54: Q3 | I54: 2014 Q3 | J54: 532867.42 | K54: 18733.86 | L54: 0.0147 | M54: 652.76 | N54: 560487.9 | P54: 20662.64 | Q54: 599216.56
B55: 2013 Q4 | C55: 0.0147 | D55: 0.0317 | F55: 2014-10-01 | G55: 2014 | H55: Q4 | I55: 2014 Q4 | J55: 551601.28 | K55: 18342.19 | L55: 0.0147 | M55: 675.71 | N55: 579505.8 | P55: 20662.64 | Q55: 619879.2
B56: 2014 Q1 | C56: 0.0147 | D56: 0.0289 | F56: 2014-11-01 | G56: 2014 | H56: Q4 | I56: 2014 Q4 | J56: 569943.47 | K56: 15669.16 | L56: 0.0147 | M56: 698.18 | N56: 595873.14 | P56: 20662.64 | Q56: 640541.84
B57: 2014 Q2 | C57: 0.0147 | D57: 0.0289 | F57: 2014-12-01 | G57: 2014 | H57: Q4 | I57: 2014 Q4 | J57: 585612.63 | K57: 19410.76 | L57: 0.0147 | M57: 717.38 | N57: 616001.28 | P57: 20662.64 | Q57: 661204.48
B58: 2014 Q3 | C58: =C57 -> 0.0147 | D58: 0.0289 | F58: 2015-01-01 | G58: 2015 | H58: Q1 | I58: 2015 Q1 | J58: 605023.39 | K58: 25424.82 | L58: 0.0147 | M58: 741.15 | N58: 642167.25 | P58: 20662.64 | Q58: 681867.12
B59: 2014 Q4 | C59: =C57 -> 0.0147 | D59: 0.0289 | F59: 2015-02-01 | G59: 2015 | H59: Q1 | I59: 2015 Q1 | J59: 630448.21 | K59: 35404.3 | L59: 0.0147 | M59: 772.3 | N59: 678343.85 | P59: 20662.64 | Q59: 702529.76
B60: 2015 Q1 | C60: =C59 -> 0.0147 | D60: 0.0289 | F60: 2015-03-01 | G60: 2015 | H60: Q1 | I60: 2015 Q1 | J60: 665852.51 | K60: 32076.81 | L60: 0.0147 | M60: 815.67 | N60: 711236.33 | P60: 20662.64 | Q60: 723192.4
B61: 2015 Q2 | C61: 0.011 | D61: 0.0289 | F61: 2015-04-01 | G61: 2015 | H61: Q2 | I61: 2015 Q2 | J61: 697929.32 | K61: 30000 | L61: 0.011 | M61: 639.77 | N61: 741876.1 | P61: 20662.64 | Q61: 743855.04
B62: 2015 Q3 | C62: 0.011 | D62: 0.0289 | F62: 2015-05-01 | G62: 2015 | H62: Q2 | I62: 2015 Q2 | J62: 727929.32 | K62: 15000 | L62: 0.011 | M62: 667.27 | N62: 757543.37
B63: 2015 Q4 | C63: 0.011 | D63: 0.0289
F65: Total Funding Adder Revenues Collected | K65: =SUM(K26:K62) -> 742929.32 | M65: =SUM(M27:M62) -> 14614.05 | N65: =K65+M65 -> 757543.37

Sheet 8. Opex Interest Annual
B13: This worksheet calculates the interest on amortization/depreciation expense, in the absence of monthly data.
B16: Sheet 8: Interest on Amortization (Annual Data)
B21: Year | D21: OM&A | F21: Amortization Expense | H21: Cumulative OM&A and Amortization Expense | J21: Average Cumulative OM&A and Amortization Expense | L21: Average Annual Prescribed Interest Rate for Deferral and Variance Accounts (from Sheets 8A and 8B) | N21: Simple Interest on OM&A and Amortization Expenses
F22: (from Sheet 6)
B23: 2012 | D23: 0 | F23: ='6. ICMIRR '!F28 -> 43400.77 | H23: =D23+F23 -> 43400.77 | J23: =H23/2 -> 21700.385 | L23: =AVERAGE('7. Funding Adder Revs'!C48:C51) -> 0.0147 | N23: =J23*L23 -> 318.9956595
B24: 2013 | D24: 0 | F24: ='6. ICMIRR '!H28 -> 51333.01016 | H24: =H23+F24 -> 94733.78016 | J24: =H24/2 -> 47366.89008 | L24: =AVERAGE('7. Funding Adder Revs'!C52:C55) -> 0.0147 | N24: 696.2932842
B25: 2014 | D25: 0 | F25: ='6. ICMIRR '!J28 -> 56948.44505 | H25: =H24+F25 -> 151682.2252 | J25: =H25/2 -> 75841.1126 | L25: =AVERAGE('7. Funding Adder Revs'!C56:C59) -> 0.0147 | N25: 1114.864355
B26: 2015 | D26: 0 | F26: ='6. ICMIRR '!L28 -> 57603.16676 | H26: 209285.392 | J26: =(H26+H25)/2 -> 180483.8086 | L26: =AVERAGE('7. Funding Adder Revs'!C60:C63) -> 0.011925 | N26: 2152.269417
B27: Cumulative Interest to 2014 | N27: =SUM(N23:N25) -> 2130.153299
B28: Cumulative Interest to 2015 | N28: =SUM(N23:N26) -> 4282.422716

Sheet 9. True-up Amount
B14: This worksheet calculates the ICM Incremental Revenue Requirement.
B17: Sheet 9: ICM Incremental Revenue Requirement True-up
G20: 2012 Actual | I20: 2013 Actual | K20: 2014 Actual | M20: 2015 Forecast | O20: Total
C22: Deferred and forecasted ICM Incremental Revenue Requirement (from Sheet 6) | G22: ='6. ICMIRR '!F87 -> 194044.2738 | I22: ='6. ICMIRR '!H87 -> 227766.4254 | K22: ='6. ICMIRR '!J87 -> 233006.3616 | M22: ='6. ICMIRR '!L87 -> 230523.3682 | O22: =SUM(G22:M22) -> 885340.429 | Q22: =O22-SUM('6. ICMIRR '!F87:L87) -> 0
C24: Interest on Deferred and forecasted Amortization Expense (Sheet 8) | G24: ='8. Opex Interest Annual'!N23 -> 318.9956595 | I24: ='8. Opex Interest Annual'!N24 -> 696.2932842 | K24: ='8. Opex Interest Annual'!N25 -> 1114.864355 | M24: ='8. Opex Interest Annual'!N26 -> 2152.269417 | O24: =SUM(G24:M24) -> 4282.422716 | Q24: =SUM('8. Opex Interest Annual'!N23:N26)-O24 -> 0
C27: ICM Funding Adder Revenues (from Sheet 7) | G27: =SUM('7. Funding Adder Revs'!K26:K33) -> 116999.12 | I27: =SUM('7. Funding Adder Revs'!K34:K45) -> 242404.52 | K27: =SUM('7. Funding Adder Revs'!K46:K57) -> 245619.75 | M27: =SUM('7. Funding Adder Revs'!K58:K62) -> 137905.93 | O27: =SUM(G27:M27) -> 742929.32 | Q27: =O27-'7. Funding Adder Revs'!K65 -> 0
C29: ICM Funding Adder Interest (from Sheet 7) | G29: =SUM('7. Funding Adder Revs'!M27:M33) -> 388.48 | I29: =SUM('7. Funding Adder Revs'!M34:M45) -> 3485.16 | K29: =SUM('7. Funding Adder Revs'!M46:M57) -> 7104.25 | M29: =SUM('7. Funding Adder Revs'!M58:M62) -> 3636.16 | O29: =SUM(G29:M29) -> 14614.05 | Q29: =O29-'7. Funding Adder Revs'!M65 -> 0
C31: Net Deferred Revenue Requirement | G31: =(G22+G24)-(G27+G29) -> 76975.66945 | I31: =(I22+I24)-(I27+I29) -> -17426.96131 | K31: =(K22+K24)-(K27+K29) -> -18602.77404 | M31: =(M22+M24)-(M27+M29) -> 91133.54764 | O31: =(O22+O24)-(O27+O29) -> 132079.4817
